Cogmind - Beta 11 X4 @@@ ROGUE MODE // 2021.05.24 @ 20:08:40 Player: Terminus Result: Escaped! Performance ------------- Evolutions (9) 4500 Regions Visited (34) 6800 Robots Destroyed (755) 3775 Value Destroyed (32086) 32086 Prototype IDs (46) 920 Alien Tech Used (2) 400 Bonus (19675) 19675 TOTAL SCORE: 68156 Bonus ------- Triggered High Security 500 High Alert Combat Kills 8254 Follower Combat Kills 2685 Network Hubs Disabled 200 Met Imprinter 300 Met Zhirov 300 Met Warlord at Base 500 MAIN.C Attacked Warlord 500 Warlord Defense Kill 94 Met R17 at Cetus 500 Met Warlord at Research 2000 Invited to Help at Command 2000 Scanned by Researcher 500 Win 3000 Friendly Fire -1658 Cogmind --------- Core Integrity 1392/1600 Matter 262/300 Energy 933/940 System Corruption 8% Temperature Cool (8) Movement Treading (380) Ox2 Location To Epsilon Eridani Parts ------- > --- POWER (3) -------- Particle Reactor Vortex Chain Reactor > --- PROPULSION (4) --- Advanced Heavy Siege Treads > --- UTILITY (14) ----- 2N-1CE's Frost Array Huge Storage Unit Advanced Signal Interpreter Experimental Targeting Computer Advanced Target Analyzer Advanced Weapon Cycler SHELL Armor Advanced Hacking Suite Experimental Hacking Suite > --- WEAPON (4) ------- Tri-rail Accelerator > --- INVENTORY (25) --- Light Quantum Reactor Light Quantum Reactor Biometal Heavy Treads Advanced Heavy Siege Treads Advanced Heavy Siege Treads Matter Compressor (250) Long-range Sensor Array Improved Armor Integrity Analyzer Advanced Particle Charger Experimental Weapon Shielding Experimental Weapon Shielding Ghost Barrier Null Cannon Tri-rail Accelerator Micro-nuke Launcher Plasma Cutter Peak State ------------ > --- POWER ------------ Light Quantum Reactor Vortex Chain Reactor > --- PROPULSION ------- Advanced Heavy Siege Treads Advanced Heavy Siege Treads > --- UTILITY ---------- 2N-1CE's Frost Array Huge Storage Unit Long-range Sensor Array Experimental Targeting Computer Advanced Target Analyzer Advanced Weapon Cycler Advanced Transmission Jammer Experimental Weapon Shielding SHELL Armor Improved Force Field Advanced Hacking Suite Experimental Hacking Suite > --- WEAPON ----------- Tri-rail Accelerator Tri-rail Accelerator > --- INVENTORY -------- Biometal Heavy Treads Advanced Heavy Siege Treads Advanced Heavy Siege Treads Matter Compressor Long-range Sensor Array Advanced Signal Interpreter Improved Armor Integrity Analyzer Advanced Particle Charger Improved Kinecellerator Experimental Weapon Shielding Ghost Barrier Long-range Tractor Beam Transdimensional Reconstructor Null Cannon Tri-rail Accelerator Tri-rail Accelerator Micro-nuke Launcher Plasma Cutter [Rating: 213] Favorites ----------- Power Antimatter Reactor Engine Reinforced Ion Engine Reactor Antimatter Reactor Propulsion Improved Treads Treads Improved Treads Utility Huge Storage Unit Device Long-range Sensor Array Storage Huge Storage Unit Processor Advanced Targeting Computer Hackware Advanced Hacking Suite Protection Hardened Medium Armor Plating Weapon Flak Gun Energy Gun Medium Laser Energy Cannon Null Cannon Ballistic Gun Flak Gun Ballistic Cannon Tri-rail Accelerator Launcher Advanced EMP Blaster Special Weapon Remote Datajack Slashing Weapon Great Axe Piercing Weapon Spear Build | -11 -10 -10 -9 -9 -9 -8 -8 -8 -7 -7 -7 -7 -7 -7 -6 -6 -6 -6 -6 -6 -5 -5 -5 -5 -4 -4 -4 -4 -4 -3 -3 -3 -2 -1 ------- Run | Scr Mat Min Mat Min Exi Min Mat Sto Fac Was Fac Low Low Zio Pro Fac Ext Cet Arc Hub Fac Upp Upp Zhi Pro Fac Upp Upp War Pro Res Tes Res Acc Slots Evolved 18 | . . . 2 . . . 2 . 2 . . . . . . 2 . . . . 2 . . . . 2 . . . . 2 . 2 2 Power 2 | . . . . . . . . . . . . . . . . . . . . . . . . . . 1 . . . . . . . 1 Propulsion 2 | . . . . . . . 1 . . . . . . . . 1 . . . . . . . . . . . . . . . . . . Utility 12 | . . . 1 . . . 1 . 2 . . . . . . 1 . . . . 1 . . . . 1 . . . . 2 . 2 1 Weapon 2 | . . . 1 . . . . . . . . . . . . . . . . . 1 . . . . . . . . . . . . . Parts Attached 548 | 6 7 2 21 1 1 11 41 11 38 10 28 4 3 4 1 18 21 18 3 17 14 3 11 2 4 57 10 3 9 8 35 63 14 49 Power 35 | 1 1 . 1 . . . 1 3 1 1 4 . . . . 2 1 2 . 1 2 . 1 1 . 2 . . . 1 4 1 2 2 Engine 13 | 1 1 . 1 . . . 1 3 1 . 3 . . . . 1 1 . . . . . . . . . . . . . . . . . Core . | . . . . . . . . . . . . . . . . . . . . . . . . . . . . . . . . . . . Reactor 22 | . . . . . . . . . . 1 1 . . . . 1 . 2 . 1 2 . 1 1 . 2 . . . 1 4 1 2 2 Propulsion 58 | 2 2 . 4 1 . 2 10 2 6 1 4 . . . . 1 8 1 . 2 3 . . . . 4 . . 1 . 1 3 . . Treads 58 | 2 2 . 4 1 . 2 10 2 6 1 4 . . . . 1 8 1 . 2 3 . . . . 4 . . 1 . 1 3 . . Leg . | . . . . . . . . . . . . . . . . . . . . . . . . . . . . . . . . . . . Wheel . | . . . . . . . . . . . . . . . . . . . . . . . . . . . . . . . . . . . Hover . | . . . . . . . . . . . . . . . . . . . . . . . . . . . . . . . . . . . Flight . | . . . . . . . . . . . . . . . . . . . . . . . . . . . . . . . . . . . Utility 309 | 1 3 1 4 . 1 4 9 1 8 5 14 2 3 . . 6 8 12 3 10 5 3 10 1 2 46 4 3 4 6 29 55 12 34 Device 197 | . 2 1 . . . 1 4 . 3 3 9 1 1 . . 1 4 6 1 5 2 2 4 1 1 33 2 3 4 6 18 39 8 32 Storage 10 | 1 1 . 2 . 1 . 2 . 1 . 1 . . . . . . . . . . . . . . . . . . . . 1 . . Processor 10 | . . . . . . . . . 1 1 . 1 . . . . 1 . . . . . 1 . . 1 . . . . . 1 1 2 Hackware 8 | . . . . . . . 1 . 1 . . . . . . 1 . . 1 . 1 . . . . 2 . . . . 1 . . . Protection 84 | . . . 2 . . 3 2 1 2 1 4 . 2 . . 4 3 6 1 5 2 1 5 . 1 10 2 . . . 10 14 3 . Artifact . | . . . . . . . . . . . . . . . . . . . . . . . . . . . . . . . . . . . Weapon 146 | 2 1 1 12 . . 5 21 5 23 3 6 2 . 4 1 9 4 3 . 4 4 . . . 2 5 6 . 4 1 1 4 . 13 Energy Gun 2 | . . . 1 . . . 1 . . . . . . . . . . . . . . . . . . . . . . . . . . . Energy Cannon 10 | . . . 1 . . . . . 2 . . . . . . . . . . . . . . . . 1 . . 1 . . 1 . 4 Ballistic Gun 72 | 2 . 1 5 . . 1 15 4 14 2 5 1 . 4 . 7 3 3 . 2 1 . . . . . 1 . . . . . . 1 Ballistic Cannon 39 | . 1 . 5 . . 3 . 1 . 1 . 1 . . . . . . . . 3 . . . 2 4 3 . 3 1 1 3 . 7 Launcher 14 | . . . . . . 1 2 . 5 . . . . . . 1 1 . . 1 . . . . . . 2 . . . . . . 1 Special Weapon 1 | . . . . . . . . . 1 . . . . . . . . . . . . . . . . . . . . . . . . . Impact Weapon . | . . . . . . . . . . . . . . . . . . . . . . . . . . . . . . . . . . . Slashing Weapon 4 | . . . . . . . 2 . . . . . . . . 1 . . . 1 . . . . . . . . . . . . . . Piercing Weapon 4 | . . . . . . . 1 . 1 . 1 . . . 1 . . . . . . . . . . . . . . . . . . . Special Melee Weapon . | . . . . . . . . . . . . . . . . . . . . . . . . . . . . . . . . . . . Unidentified Prototypes 30 | . . . 2 . . . 2 2 3 1 1 . . . . 1 1 3 . . 1 . . 2 . 1 . . 1 . 1 4 1 3 Corrupted Parts 1 | . . . . . . . . . . . . . . . . . . . . . . . . . . . . . . . . . 1 . System Corruption 1 | . . . . . . . . . . . . . . . . . . . . . . . . . . . . . . . . . 1 . Parts Lost 79 | . . 1 1 . . 7 5 1 13 . 8 . 1 . . 7 4 2 . 6 1 1 2 . 1 2 . . . 1 2 2 2 9 Power 12 | . . . 1 . . . . 1 1 . 1 . . . . 2 1 . . 1 . . 1 . . . . . . . 1 1 . 1 Propulsion 14 | . . . . . . 2 2 . 3 . 2 . . . . . 2 . . 1 . . . . . 1 . . . . . . . 1 Utility 29 | . . . . . . 3 . . 6 . 4 . 1 . . 2 . 1 . 1 1 1 1 . . 1 . . . . . . 2 5 Weapon 24 | . . 1 . . . 2 3 . 3 . 1 . . . . 3 1 1 . 3 . . . . 1 . . . . 1 1 1 . 2 Highest Loss Streak 5 | . . 1 1 . . 3 3 1 4 . 2 . 1 . . 5 4 2 . 3 1 1 1 . 1 1 . . . 1 2 1 2 4 Average Slot Usage (%) 88 | . 98 100 99 100 100 99 99 99 96 91 91 92 92 90 92 85 94 97 93 92 78 75 75 75 79 80 78 78 77 78 80 79 73 71 Engine 3 | . 14 14 10 11 11 11 8 9 6 . 2 . . . . . 3 1 . . . . . . . . . . . . . . . . Reactor 4 | . . . . . . . . . . 6 4 7 7 7 7 5 2 4 6 5 5 5 4 5 5 10 10 10 10 10 9 8 8 7 Treads 16 | . 28 28 22 22 22 21 26 27 22 15 14 15 15 15 15 13 20 23 20 20 12 11 11 11 11 9 10 10 10 10 9 9 8 8 Device 14 | . 12 14 11 11 11 11 9 9 13 14 17 21 21 23 23 15 17 16 13 18 11 10 10 10 11 10 10 10 10 10 17 18 17 19 Storage 6 | . 14 14 11 11 11 11 9 9 7 7 7 7 7 7 7 6 6 6 6 6 5 5 5 5 5 5 5 5 5 5 4 3 4 4 Processor 7 | . . . . . . . . . 7 12 7 10 15 15 15 13 13 13 13 13 11 11 8 11 11 10 10 10 10 10 9 9 8 10 Hackware 7 | . . . . . . . 9 9 6 7 4 . . . . 5 6 6 6 6 11 11 11 11 11 15 15 15 15 15 19 19 10 8 Protection 5 | . . . 10 11 11 10 8 8 5 1 6 4 1 . . 4 2 2 5 1 5 5 7 5 5 4 5 5 5 5 1 . 6 5 Ballistic Gun 11 | . 18 14 4 . . 5 24 26 22 22 22 22 23 21 18 19 19 19 20 18 . . . . . . . . . . . . . . Ballistic Cannon 7 | . 9 14 27 33 33 27 1 . . . . . . . . . . . . . 10 11 11 11 14 12 9 10 9 10 9 8 8 7 Naked Turns . | . . . . . . . . . . . . . . . . . . . . . . . . . . . . . . . . . . . Heaviest Build 213 | 14 21 21 68 68 68 70 109 109 108 118 120 120 119 112 112 120 121 127 127 131 141 141 141 139 140 152 151 151 151 153 154 158 178 213 Greatest Support 160 | 40 40 40 46 46 43 46 66 69 74 93 98 98 98 98 98 140 140 140 140 140 150 150 150 150 150 155 155 155 155 150 150 160 160 160 Greatest Overweight (x) 2 | . . . 1 1 1 1 2 1 2 1 1 1 1 1 1 . 1 1 . 1 2 . . . . 1 . . 1 1 1 1 1 2 Average Overweight (x) . | . . . . 1 1 1 1 1 1 1 1 1 1 1 1 . . . . . . . . . . . . . . 1 . . 1 1 Largest Inventory Capacity 25 | 8 10 10 20 20 20 20 25 25 25 25 25 25 25 25 25 25 25 25 25 25 25 25 25 25 25 25 25 25 25 25 25 25 25 25 Average Capacity 23 | 7 9 10 15 20 20 20 24 25 25 25 25 25 25 25 25 25 25 25 25 25 25 25 25 25 25 25 25 25 25 25 25 24 25 25 Most Carried 25 | 2 10 10 20 20 20 20 25 25 25 25 25 25 25 25 25 25 25 25 25 25 25 25 25 25 25 25 25 25 25 25 25 25 25 24 Average Carried 22 | 1 7 9 14 19 20 17 23 24 24 24 24 24 24 25 24 24 24 24 24 24 23 24 23 24 23 23 24 25 24 24 23 23 23 21 Final Capacity 25 | 8 10 10 20 20 20 20 25 25 25 25 25 25 25 25 25 25 25 25 25 25 25 25 25 25 25 25 25 25 25 25 25 25 25 25 Final Carried 25 | 2 10 10 20 20 20 19 25 25 24 25 24 25 25 25 25 25 25 25 25 21 25 24 25 25 23 25 25 25 25 23 22 23 23 20 Class Distribution -------------------- 20% | Scavenger-Skirmisher 16% | Hacker-Skirmisher 15% | Tank 8% | Scavenger-Tank 5% | Wizard-Skirmisher 5% | Scavenger-Mutant 5% | Skirmisher 4% | Scavenger-Gunner 4% | Generator-Gunner 3% | Mutant Dominant Class ---------------- Mutant | -10/Materials Mutant | -10/Mines Tank | -9/Materials Tank | -9/Mines Tank | -9/Exiles Tank | -8/Mines Scavenger-Tank | -8/Materials Tank | -8/Storage Skirmisher | -7/Factory Scavenger-Skirmisher | -7/Waste Scavenger-Skirmisher | -7/Factory Scavenger-Skirmisher | -7/Lower Caves Scavenger-Skirmisher | -7/Lower Caves Scavenger-Mutant | -7/Zion Scavenger-Mutant | -6/Proximity Caves Scavenger-Gunner | -6/Factory Scavenger-Skirmisher | -6/Extension Scavenger-Skirmisher | -6/Cetus Scavenger-Gunner | -6/Archives Scavenger-Skirmisher | -6/Hub_04(d) Scavenger-Skirmisher | -5/Factory Hacker-Skirmisher | -5/Upper Caves Hacker-Skirmisher | -5/Upper Caves Hacker-Skirmisher | -5/Zhirov Hacker-Skirmisher | -4/Proximity Caves Hacker-Skirmisher | -4/Factory Hacker-Skirmisher | -4/Upper Caves Hacker-Skirmisher | -4/Upper Caves Hacker-Skirmisher | -4/Warlord Hacker-Skirmisher | -3/Proximity Caves Wizard-Skirmisher | -3/Research Wizard-Skirmisher | -3/Testing Machinist-Gunner | -2/Research Generator-Gunner | -1/Access Resources | -11 -10 -10 -9 -9 -9 -8 -8 -8 -7 -7 -7 -7 -7 -7 -6 -6 -6 -6 -6 -6 -5 -5 -5 -5 -4 -4 -4 -4 -4 -3 -3 -3 -2 -1 ----------- Run | Scr Mat Min Mat Min Exi Min Mat Sto Fac Was Fac Low Low Zio Pro Fac Ext Cet Arc Hub Fac Upp Upp Zhi Pro Fac Upp Upp War Pro Res Tes Res Acc Matter Collected 25327 | 249 484 134 1059 274 . 536 1397 853 1369 698 1899 184 78 102 10 776 857 761 265 415 553 335 397 . 430 2411 372 113 126 277 1384 2241 887 3401 Remotely 8340 | . . . . . . . . . . . . . . . . . . . . . 233 44 250 . 114 1786 80 45 100 169 804 1561 667 2487 Salvage Created 31515 | 60 726 61 1231 162 . 755 2143 1273 2460 1663 3839 97 163 . . 1696 1363 831 343 1014 503 250 337 . 264 1767 160 37 43 158 1340 1556 958 4262 Parts 1387 | 1 55 4 91 9 . 29 127 60 153 29 184 2 8 . . 79 68 39 23 54 16 6 5 . 8 48 8 2 . 6 46 67 19 141 Haulers Intercepted 46 | . 1 . 6 . . . 6 6 3 . 4 . . . . 2 . . . 3 1 . . . . . . . . . 3 . 3 8 Recyclers Shooed 20 | . 2 . 5 . . . 6 . . . 1 . . . . 1 . . . 1 1 . . . . 3 . . . . . . . . Parts Field Recycled . | . . . . . . . . . . . . . . . . . . . . . . . . . . . . . . . . . . . Retrieved Matter . | . . . . . . . . . . . . . . . . . . . . . . . . . . . . . . . . . . . Parts Self-Destructed 121 | . . . . . . . . . . . . 2 8 3 . . . . . . . 6 7 . 8 . 8 2 71 6 . . . . Prevented 18 | . . . . . . . . . . . . . . . . . . . . . . . . . . . 1 . 17 . . . . . Kills | -11 -10 -10 -9 -9 -9 -8 -8 -8 -7 -7 -7 -7 -7 -7 -6 -6 -6 -6 -6 -6 -5 -5 -5 -5 -4 -4 -4 -4 -4 -3 -3 -3 -2 -1 ------- Run | Scr Mat Min Mat Min Exi Min Mat Sto Fac Was Fac Low Low Zio Pro Fac Ext Cet Arc Hub Fac Upp Upp Zhi Pro Fac Upp Upp War Pro Res Tes Res Acc Combat Hostiles Destroyed 522 | . 16 2 29 8 . 18 34 15 45 6 52 1 3 . . 16 20 15 3 9 4 7 11 . 7 39 11 2 1 5 24 29 12 78 Guns 202 | . 8 . 2 . . 2 27 15 33 6 52 1 3 . . 16 14 15 3 5 . . . . . . . . . . . . . . Cannons 278 | . 8 2 27 8 . 13 4 . . . . . . . . . . . . . 4 7 11 . 7 37 4 2 1 5 24 29 12 73 AOE 37 | . . . . . . 3 3 . 12 . . . . . . . 4 . . 1 . . . . . 2 7 . . . . . . 5 Classes Destroyed 27 | 1 7 . 2 1 . 2 . . 5 1 1 1 . . . . 1 . . . . . . . . . . . . . . 1 1 3 Worker 50 | . 2 . . . . . 4 . 5 . 5 . . . . 6 2 . . 3 . . . . . 1 . . . . 5 3 . 14 Builder 27 | . 1 . 2 . . . 2 . 3 . 1 . . . . 1 1 . . 1 1 . . . . . . . . . 4 1 . 9 Tunneler 8 | . . . . . . 1 1 . 2 . 1 . . . . . 1 . . 1 . . . . . . . . . . . . . 1 Hauler 46 | . 1 . 6 . . . 6 6 3 . 4 . . . . 2 . . . 3 1 . . . . . . . . . 3 . 3 8 Recycler 35 | 1 1 . 2 . . 3 3 1 . . 8 . . . . 3 1 . . . 2 . . . . 4 . . . . . 2 1 3 Minesweeper 1 | . . . . . . . . . . . . 1 . . . . . . . . . . . . . . . . . . . . . . Mechanic 2 | . . . . . . . . . 1 . 1 . . . . . . . . . . . . . . . . . . . . . . . Operator 15 | . 2 . 2 . . . 1 2 . . 2 . . . . . 2 . 3 . . . . . . 1 . . . . . . . . Watcher 44 | . 2 . 3 . . . 5 2 4 . 2 . . . . 2 1 1 . 3 1 . . . . 5 . . . . . 3 3 7 Swarmer 76 | . 3 . 10 . . 4 6 . 11 . 6 . . . . . 5 3 . . . . 1 . . 2 11 . . . 4 . . 10 Saboteur 1 | . . . . . . . . . . . . . . . . . . . . . . . . . . . . . . . . . . 1 Grunt 206 | . 13 2 10 6 . 12 18 8 15 . 24 . 2 . . 6 10 6 . 2 . 4 2 . 4 9 . . . 1 4 10 6 32 Brawler 24 | . . . 1 1 . 1 . . . . 4 . . . . 2 . . . . . 2 4 . . 2 . . . . 1 1 . 5 Duelist 18 | . . . . . . 1 . . . . 5 . 1 . . 1 . 1 . . . . 3 . . 1 . . . . . . . 5 Protector 11 | . . . . . . . . . 3 . 1 . . . . . . . . . . . . . . 1 . . 1 . . 1 . 4 Researcher 3 | . . . . . . . . . . . . . . . . . . . . . . . . . . . . . . . . 3 . . Sentry 54 | . . . 8 . . . 10 7 3 . 1 . . . . 3 2 . 3 1 1 . 1 . . 6 . . . . 4 2 . 2 Specialist 3 | . . . . . . . . . 2 . . . . . . . 1 . . . . . . . . . . . . . . . . . Hunter 39 | . . . . . . . . . 5 . 3 1 . . . 2 . . . 4 . 1 . . 2 4 . . . 2 5 4 2 4 Programmer 65 | . . . . . . . . . 6 . 8 . . . . 2 . . . 2 2 . . . 1 14 . 2 . 2 6 11 . 9 Q-Series 2 | . . . . . . . . . . . . . . . . . . . . . . . . . . . . . . . . . . 2 Behemoth 4 | . . . . . . . . . . . . . . . . . 2 . . . 1 . . . . . . . . . . . 1 . Compactor 6 | . . . . . . . . . . 6 . . . . . . . . . . . . . . . . . . . . . . . . Cetus Guard 5 | . . . . . . . . . . . . . . . . . . 5 . . . . . . . . . . . . . . . . Striker 4 | . . . . . . . . . . . . . . . . . . . . . . . . . . . . . . . . . 3 1 Executioner 3 | . . . . . . . . . . . . . . . . . . . . . . . . . . . . . . . . . . 3 Assembled 1 | . . . . 1 . . . . . . . . . . . . . . . . . . . . . . . . . . . . . . Savage 1 | . . . . . . . . . . . 1 . . . . . . . . . . . . . . . . . . . . . . . Martyr 1 | . . . . . . . . . . . 1 . . . . . . . . . . . . . . . . . . . . . . . Best Kill Streak 21 | 1 4 2 4 2 . 4 5 6 15 2 10 1 3 . . 6 10 4 4 6 3 3 11 . 4 7 5 2 1 2 7 7 8 21 Combat Bots Only 11 | . 4 2 4 2 . 4 5 6 9 2 9 1 3 . . 5 7 4 2 2 2 3 11 . 4 6 5 2 1 2 4 5 5 9 Max Kills in Single Turn 8 | 1 1 1 2 1 . 3 3 1 4 1 3 1 1 . . 2 3 2 1 2 2 1 2 . 1 2 3 1 1 1 3 1 2 8 Gunslinging 1 | . . . . . . . . . . . 1 . . . . . . 1 . . . . . . . . . . . . . . . . Exploded 4 | . . . . . . 3 3 . 3 . . . . . . . 2 . . 1 . . . . . 2 3 . . . . . . 4 Melee . | . . . . . . . . . . . . . . . . . . . . . . . . . . . . . . . . . . . Uniques/NPCs Destroyed 1 | . . . . . . . . . . . . . . . . . . 1 . . . . . . . . . . . . . . . . Revision 17 (-6/Cetus) Combat | -11 -10 -10 -9 -9 -9 -8 -8 -8 -7 -7 -7 -7 -7 -7 -6 -6 -6 -6 -6 -6 -5 -5 -5 -5 -4 -4 -4 -4 -4 -3 -3 -3 -2 -1 -------- Run | Scr Mat Min Mat Min Exi Min Mat Sto Fac Was Fac Low Low Zio Pro Fac Ext Cet Arc Hub Fac Upp Upp Zhi Pro Fac Upp Upp War Pro Res Tes Res Acc Damage Taken 29084 | . 453 63 699 200 . 1189 1296 705 2141 . 2141 47 198 . . 1809 932 1201 191 1541 202 215 1050 . 706 2785 96 104 46 343 1469 1960 730 4572 Core 1810 | . 109 15 83 41 . 81 145 27 122 . 239 . 48 . . 130 96 48 . 141 . 22 . . 40 98 16 . . 25 84 86 . 114 Absorbed by Shields 2457 | . . . . . . . . . . . 17 . . . . . 28 . . . . . . . . . . . . . . . . 2412 Reduced by Siege Mode 1901 | . . . . . . . . . . . 58 . . . . 172 12 . . 43 25 20 200 . 102 296 5 17 . 12 167 298 90 384 Core Remaining (%) 73 | 100 . 50 . . . 48 . 68 . . . . . . 41 . . . . 51 . . . . 93 . . . . 87 . 86 100 87 Volleys Fired 1361 | 2 62 5 69 22 . 39 105 63 95 26 103 5 4 . . 55 35 47 11 37 11 14 18 . 19 92 15 3 2 15 61 102 36 188 Largest 3 | 2 2 2 3 3 . 3 3 3 3 3 3 3 3 . . 3 3 3 3 3 2 2 2 . 3 3 2 2 2 2 2 2 2 2 Hottest 190 | 40 55 55 117 117 . 117 117 75 84 84 84 84 84 . . 84 84 100 100 100 120 120 120 . 166 166 120 120 120 120 120 190 120 130 Shots Fired 3308 | 4 124 10 207 66 . 114 313 188 267 80 309 15 13 . . 148 97 140 33 79 20 28 36 . 48 214 20 6 3 28 105 171 72 350 Gun 1764 | 4 86 5 32 . . 17 274 188 254 80 309 15 13 . . 148 93 140 33 73 . . . . . . . . . . . . . . Cannon 1513 | . 38 5 175 66 . 96 38 . . . . . . . . . . . . . 20 28 36 . 48 214 15 6 3 28 105 171 72 349 Launcher 31 | . . . . . . 1 1 . 13 . . . . . . . 4 . . 6 . . . . . . 5 . . . . . . 1 Special . | . . . . . . . . . . . . . . . . . . . . . . . . . . . . . . . . . . . Kinetic 3245 | 4 124 10 203 66 . 113 312 188 254 80 309 15 13 . . 148 93 140 33 73 20 28 36 . 48 212 15 6 2 28 105 165 72 330 Thermal 32 | . . . 4 . . . . . . . . . . . . . . . . . . . . . . 2 . . 1 . . 6 . 19 Explosive 10 | . . . . . . 1 1 . 2 . . . . . . . . . . . . . . . . . 5 . . . . . . 1 Electromagnetic 21 | . . . . . . . . . 11 . . . . . . . 4 . . 6 . . . . . . . . . . . . . . Robot Hit Streak 77 | 4 15 17 14 11 . 15 23 24 15 27 39 9 13 . . 44 46 28 12 17 26 12 22 . 31 51 31 12 18 26 30 38 43 77 Robot Miss Streak 9 | . 4 2 5 3 . 4 5 3 4 4 9 3 5 . . 4 7 9 1 2 2 2 2 . 1 2 2 . . 3 2 3 3 3 Penetration Max 1 | . . . . . . . . . . . . . . . . . . 1 1 1 . . . . . . . . . . . . . . Secondary Targets 33 | . . . . . . . 5 . 5 1 8 . 1 . . 4 1 7 . 1 . . . . . . . . . . . . . . Max Gunslinging Chain 1 | . . . . . . . 1 . 1 1 1 . 1 . . 1 1 1 . 1 . . . . . . . . . . . . . . Shots Hit Robots 2485 | 4 81 6 110 34 . 77 209 133 181 73 277 13 11 . . 131 84 119 23 56 17 24 33 . 35 184 10 4 2 16 81 116 64 277 Core Hits 2107 | 2 33 3 51 9 . 38 92 45 125 74 358 13 20 . . 191 149 107 12 35 18 18 25 . 23 116 17 4 2 14 82 92 50 289 Critical Kills 9 | . 1 . . . . . 1 . . . . . . . . . . 1 3 3 . . . . . . . . . . . . . . Critical Parts Destroyed 10 | . . . . . . 1 1 . . . . . . . . . . 4 1 3 . . . . . . . . . . . . . . Critical Strikes 139 | . 3 . 2 2 . 4 4 . . . . . . . . . . 5 4 6 . . 2 . . 10 1 . . 1 8 7 9 71 Destroy 19 | . 1 . . . . 1 2 . . . . . . . . . . 5 4 6 . . . . . . . . . . . . . . Blast 120 | . 2 . 2 2 . 3 2 . . . . . . . . . . . . . . . 2 . . 10 1 . . 1 8 7 9 71 Melee Attacks 32 | . . . . . . . 3 . 3 . 1 . . . 22 2 . . . 1 . . . . . . . . . . . . . . Impact . | . . . . . . . . . . . . . . . . . . . . . . . . . . . . . . . . . . . Slashing 5 | . . . . . . . 2 . . . . . . . . 2 . . . 1 . . . . . . . . . . . . . . Piercing 27 | . . . . . . . 1 . 3 . 1 . . . 22 . . . . . . . . . . . . . . . . . . . Sneak Attacks . | . . . . . . . . . . . . . . . . . . . . . . . . . . . . . . . . . . . Combat Hostiles . | . . . . . . . . . . . . . . . . . . . . . . . . . . . . . . . . . . . Follow-up Attacks . | . . . . . . . . . . . . . . . . . . . . . . . . . . . . . . . . . . . Damage Inflicted 96399 | 45 1243 95 2285 772 . 1819 3598 2211 5467 2194 6698 265 267 . . 3803 3148 3247 687 2297 1116 1322 2316 . 1729 10060 974 468 120 944 5020 6654 3735 21800 Guns 30100 | 45 696 29 306 . . 207 2832 2187 3144 2194 6480 265 267 . . 3798 2235 3247 687 1481 . . . . . . . . . . . . . . Cannons 59215 | . 484 66 1915 756 . 1447 489 . . . . . . . . . . . . . 1116 1322 2316 . 1729 9543 292 468 120 944 5012 6619 3723 20854 Explosions 6474 | . . . . . . 145 160 . 2310 . 102 . . . . . 913 . . 811 . . . . . 456 682 . . . . . . 895 Melee . | . . . . . . . . . . . . . . . . . . . . . . . . . . . . . . . . . . . Ramming 610 | . 63 . 64 16 . 20 117 24 13 . 116 . . . . 5 . . . 5 . . . . . 61 . . . . 8 35 12 51 Kinetic 89262 | 45 1180 95 2221 756 . 1654 3321 2187 3144 2194 6480 265 267 . . 3798 2235 3247 687 1481 1116 1322 2316 . 1729 9490 292 468 120 944 5012 6619 3723 20854 Thermal 964 | . . . . . . . . . 139 . 29 . . . . . 205 . . 82 . . . . . 509 . . . . . . . . Explosive 3049 | . . . . . . 145 160 . 1323 . . . . . . . . . . . . . . . . . 682 . . . . . . 739 Electromagnetic 2514 | . . . . . . . . . 848 . 73 . . . . . 708 . . 729 . . . . . . . . . . . . . 156 Impact . | . . . . . . . . . . . . . . . . . . . . . . . . . . . . . . . . . . . Slashing . | . . . . . . . . . . . . . . . . . . . . . . . . . . . . . . . . . . . Piercing . | . . . . . . . . . . . . . . . . . . . . . . . . . . . . . . . . . . . Highest Corruption 20 | . . . . . . . . 4 6 6 5 5 5 5 . 3 5 5 5 14 2 2 2 2 2 11 11 12 12 2 6 20 1 8 Average Corruption 5 | . . . . . . . . 3 2 4 3 5 5 5 . 3 3 5 5 6 1 2 2 2 2 8 11 11 12 1 3 11 1 4 Corruption Purged 6 | . . . . . . . . . . 6 . . . . . . . . . . . . . . . . . . . . . . . . Effects 605 | . . . . . . . . 28 23 36 51 23 15 2 . 7 33 16 8 25 5 3 9 2 12 73 40 23 3 2 19 94 3 50 Message Errors 147 | . . . . . . . . 7 8 13 11 9 3 . . 2 3 4 4 4 2 1 5 . 3 16 3 4 . 1 4 27 . 13 Matter Fused 134 | . . . . . . . . 8 3 8 20 4 5 1 . 1 12 5 1 10 . . . . . 10 10 4 1 . 4 12 . 15 Heat Flow Errors 66 | . . . . . . . . 4 2 4 9 2 3 . . 1 3 3 1 1 . . 3 . 1 7 5 1 . . 4 7 . 5 Energy Discharges 88 | . . . . . . . . 4 4 5 4 4 3 1 . 1 7 2 . 4 2 1 1 1 3 9 5 4 1 . 2 12 3 5 Parts Rejected 1 | . . . . . . . . . . . 1 . . . . . . . . . . . . . . . . . . . . . . . Data Loss (minor) 87 | . . . . . . . . 5 4 3 2 3 . . . 2 5 1 1 2 1 1 . 1 5 13 8 3 . 1 5 14 . 7 Data Loss (major) 15 | . . . . . . . . . 1 1 1 1 . . . . . . 1 . . . . . . 3 . 1 . . . 4 . 2 Misfires 20 | . . . . . . . . . . 2 2 . 1 . . . 2 . . 1 . . . . . 2 2 . . . . 8 . . Alerts 7 | . . . . . . . . . . . . . . . . . . . . . . . . . . 2 2 1 . . . 2 . . Misdirections 22 | . . . . . . . . . . . . . . . . . . . . . . . . . . 6 5 5 1 . . 5 . . Weapon Failures 18 | . . . . . . . . . 1 . 1 . . . . . 1 1 . 3 . . . . . 5 . . . . . 3 . 3 Overload Shots 1 | . . . . . . . . . . . . . . . . . . . . . . . . . . . . . 1 . . . . . Overflow Damage 1758 | . . . 12 45 . 17 27 . 72 . . . . . . . 1 . . 114 3 22 18 . 14 327 25 . . 12 78 244 71 656 Projectiles 1481 | . . . 12 45 . 17 27 . . . . . . . . . . . . . 3 22 18 . 14 301 12 . . 12 78 244 66 610 Explosions 272 | . . . . . . . . . 72 . . . . . . . 1 . . 114 . . . . . 26 13 . . . . . . 46 Melee 5 | . . . . . . . . . . . . . . . . . . . . . . . . . . . . . . . . . 5 . Knockbacks 418 | . 6 . 10 7 . 31 4 . 1 . . . . . . . . . . . 7 9 5 . 2 81 1 2 1 6 26 58 32 129 Impact 9 | . 1 . 1 . . . 2 . 1 . . . . . . . . . . . . . . . . 1 . . . . . 1 . 2 Kinetic 379 | . 5 . 7 7 . 27 2 . . . . . . . . . . . . . 7 9 5 . 2 75 1 2 1 6 25 55 30 113 Secondary 30 | . . . 2 . . 4 . . . . . . . . . . . . . . . . . . . 5 . . . . 1 2 2 14 Self-Inflicted Damage 530 | . . . . . . 9 . . 192 . 35 . . . . . . . . 104 . . . . . 123 23 . . . . . . 44 Shots 18 | . . . . . . 1 . . 9 . 2 . . . . . . . . 1 . . . . . 3 1 . . . . . . 1 Rammed 71 | . 12 . 10 3 . 2 11 5 2 . 8 . . . . 1 . . . 1 . . . . . 4 . . . . 1 4 1 6 Targets Rammed 83 | . 14 . 11 3 . 3 14 5 3 . 10 . . . . 1 . . . 2 . . . . . 4 . . . . 1 5 1 6 Kicked . | . . . . . . . . . . . . . . . . . . . . . . . . . . . . . . . . . . . Crushed 12 | . 2 . 1 . . 1 3 . 1 . 2 . . . . . . . . 1 . . . . . . . . . . . 1 . . Highest Temperature 346 | . 3 . 94 262 . 295 63 254 260 196 243 235 192 . . 99 202 217 208 104 . 72 237 . 175 221 217 73 . . 212 218 . 346 Average Temperature 53 | . 3 . 29 75 . 68 18 75 34 20 71 130 67 . . 27 73 66 98 27 . 42 85 . 99 83 87 39 . . 102 97 . 143 Received Heat Transfer 5056 | . 216 9 162 111 . 675 567 333 465 . 609 . 90 . . 375 179 36 36 72 9 45 126 . 66 129 . . . 21 84 298 81 262 Effects 2 | . . . . . . . . . . . . . . . . . . . . . . . . . . . . . . . . . . 2 Interference 2 | . . . . . . . . . . . . . . . . . . . . . . . . . . . . . . . . . . 2 Siege Activations 107 | . . . . . . . . . . 2 3 . . . . 10 3 . 1 4 3 3 1 . 4 16 1 1 . 3 13 14 5 20 Total Turns 1883 | . . . . . . . . . . 26 57 . . . . 158 26 . 12 54 32 76 56 . 62 416 7 15 . 22 134 193 49 488 Longest Duration 100 | . . . . . . . . . . 17 38 . . . . 41 14 . 12 31 17 53 56 . 25 68 7 15 . 12 28 26 17 100 Robots Corrupted 5 | . . . . . . . . . . . . . . . . . 2 . . 3 . . . . . . . . . . . . . . Combat Hostiles 5 | . . . . . . . . . . . . . . . . . 2 . . 3 . . . . . . . . . . . . . . Parts Fried 18 | . . . . . . . . . 8 . . . . . . . 4 . . 6 . . . . . . . . . . . . . . Impact Corruptions 2 | . . . . . . . . . . . . . . . . . . . . . . . . . . . . . . . . . 1 1 Robots Melted . | . . . . . . . . . . . . . . . . . . . . . . . . . . . . . . . . . . . Combat Hostiles . | . . . . . . . . . . . . . . . . . . . . . . . . . . . . . . . . . . . Parts Melted 3 | . . . . . . . . 1 1 . . . . . . . . . . . . . . . . . . . . . . . . 1 Heat Transferred 1124 | . . . . . . . . . 300 . 100 . . . . . 300 . . 100 . . . . . 324 . . . . . . . . Parts Sabotaged 3 | . . . . . . . . . . . . . . . . . . . . . . . 2 . . . . . . . . . . 1 Parts Stolen . | . . . . . . . . . . . . . . . . . . . . . . . . . . . . . . . . . . . Parts Stripped . | . . . . . . . . . . . . . . . . . . . . . . . . . . . . . . . . . . . Power Chain Reactions 8 | . . . . . . . . . 3 . 1 . . . . . 3 . . 1 . . . . . . . . . . . . . . Missiles Intercepted . | . . . . . . . . . . . . . . . . . . . . . . . . . . . . . . . . . . . Alert | -11 -10 -10 -9 -9 -9 -8 -8 -8 -7 -7 -7 -7 -7 -7 -6 -6 -6 -6 -6 -6 -5 -5 -5 -5 -4 -4 -4 -4 -4 -3 -3 -3 -2 -1 ------- Run | Scr Mat Min Mat Min Exi Min Mat Sto Fac Was Fac Low Low Zio Pro Fac Ext Cet Arc Hub Fac Upp Upp Zhi Pro Fac Upp Upp War Pro Res Tes Res Acc Peak Influence 2242 | 5 282 92 608 268 . 233 373 442 1291 439 1728 . . . . 318 666 620 378 432 667 . . . . 963 . . . . 586 1131 1019 2242 Initial 611 | . 3 42 31 218 . . 5 . 54 439 . . . . . . 133 244 248 132 196 . . . . . . . . . 13 183 609 611 Average 406 | 1 113 82 255 91 . 87 216 198 353 187 746 . . . . 135 416 402 332 235 368 . . . . 290 . . . . 286 528 719 1329 Maximum Alert Level 5 | . 1 . 2 1 . 1 1 2 4 2 5 . . . . 1 2 2 1 2 2 . . . . 3 . . . . 2 4 3 5 Low Security (%) 38 | 100 80 100 52 78 . 91 29 59 56 50 2 . . . . 58 7 . . 44 25 . . . . 54 . . . . 38 29 . . Level 1 24 | . 19 . 21 21 . 8 70 33 12 24 6 . . . . 41 43 53 100 51 18 . . . . 18 . . . . 19 24 . . Level 2 17 | . . . 26 . . . . 7 14 24 37 . . . . . 48 46 . 3 56 . . . . 11 . . . . 41 . 57 11 Level 3 10 | . . . . . . . . . . . 39 . . . . . . . . . . . . . . 16 . . . . . 46 42 10 Level 4 6 | . . . . . . . . . 17 . 13 . . . . . . . . . . . . . . . . . . . . . . 54 Level 5 . | . . . . . . . . . . . 1 . . . . . . . . . . . . . . . . . . . . . . 10 High Security . | . . . . . . . . . . . . . . . . . . . . . . . . . . . . . . . . . . 12 Max Security . | . . . . . . . . . . . . . . . . . . . . . . . . . . . . . . . . . . . Squads Dispatched 128 | . 5 . 4 . . . 2 4 13 . 21 . . . . 11 9 . . 3 2 . 1 . . 13 . . . . 7 8 1 24 Investigation 18 | . 3 . 2 . . . . . 3 . 4 . . . . 1 3 . . . . . . . . . . . . . 1 . 1 . Extermination 35 | . . . . . . . . . 5 . 7 . . . . 3 . . . 1 2 . . . . 6 . . . . 2 5 . 4 Reinforcement 35 | . 2 . 2 . . . 1 4 3 . 3 . . . . 2 5 . . 2 . . . . . 2 . . . . 3 2 . 4 Assault 27 | . . . . . . . . . 2 . 4 . . . . . 1 . . . . . 1 . . 2 . . . . 1 1 . 15 Garrison 13 | . . . . . . . 1 . . . 3 . . . . 5 . . . . . . . . . 3 . . . . . . . 1 Intercept . | . . . . . . . . . . . . . . . . . . . . . . . . . . . . . . . . . . . Construction Impeded 9 | . . . . . . . . . 2 . 1 . . . . 2 2 . . 1 . . . . . . . . . . . . . 1 Haulers Reinforced 5 | . . . . . . . . . . . . . . . . . . . . . . . . . . . . . . . 2 . . 3 Cargo Convoy Interrupts 1 | . . . . . . . . . 1 . . . . . . . . . . . . . . . . . . . . . . . . . Stealth | -11 -10 -10 -9 -9 -9 -8 -8 -8 -7 -7 -7 -7 -7 -7 -6 -6 -6 -6 -6 -6 -5 -5 -5 -5 -4 -4 -4 -4 -4 -3 -3 -3 -2 -1 --------- Run | Scr Mat Min Mat Min Exi Min Mat Sto Fac Was Fac Low Low Zio Pro Fac Ext Cet Arc Hub Fac Upp Upp Zhi Pro Fac Upp Upp War Pro Res Tes Res Acc Distress Signals 34 | . . . 2 1 . . 1 4 2 . . . . . . . 3 2 1 1 . . . . . . . . . . 2 1 13 1 Communications Jammed 81 | . . . . . . . . . . . . . . . . . . . . . . . . . . . . . . . 13 21 2 45 Distress Signals 80 | . . . . . . . . . . . . . . . . . . . . . . . . . . . . . . . 13 20 2 45 Times Spotted 773 | . 30 2 49 10 . 19 45 39 62 6 75 1 3 . . 21 50 23 6 16 5 9 13 . 5 52 6 2 22 5 27 43 18 109 Peak Tracking Total 16 | . 4 2 6 3 . 4 6 6 11 2 6 1 3 . . 5 10 5 2 5 2 4 8 . 3 5 5 2 6 2 4 5 8 16 Tactical Retreats 30 | . 1 . 2 . . 2 1 . 4 . 3 . . . . . 5 1 . . . 2 . . . 5 . . . . 1 . . 3 Traps | -11 -10 -10 -9 -9 -9 -8 -8 -8 -7 -7 -7 -7 -7 -7 -6 -6 -6 -6 -6 -6 -5 -5 -5 -5 -4 -4 -4 -4 -4 -3 -3 -3 -2 -1 ------- Run | Scr Mat Min Mat Min Exi Min Mat Sto Fac Was Fac Low Low Zio Pro Fac Ext Cet Arc Hub Fac Upp Upp Zhi Pro Fac Upp Upp War Pro Res Tes Res Acc Traps Triggered 24 | . 2 1 3 . . . 1 5 1 . 3 . . . . 1 1 . . 1 . . . . . . . . . . 1 3 . 1 Indirectly . | . . . . . . . . . . . . . . . . . . . . . . . . . . . . . . . . . . . Trap Hack Attempts . | . . . . . . . . . . . . . . . . . . . . . . . . . . . . . . . . . . . Triggered . | . . . . . . . . . . . . . . . . . . . . . . . . . . . . . . . . . . . Disarmed . | . . . . . . . . . . . . . . . . . . . . . . . . . . . . . . . . . . . Reprogrammed . | . . . . . . . . . . . . . . . . . . . . . . . . . . . . . . . . . . . Reused . | . . . . . . . . . . . . . . . . . . . . . . . . . . . . . . . . . . . Traps Extracted . | . . . . . . . . . . . . . . . . . . . . . . . . . . . . . . . . . . . Installed . | . . . . . . . . . . . . . . . . . . . . . . . . . . . . . . . . . . . Triggered 13 | . . . . . . . . . . . . . . . . . . . . . . . . . . . . . 13 . . . . . Machines | -11 -10 -10 -9 -9 -9 -8 -8 -8 -7 -7 -7 -7 -7 -7 -6 -6 -6 -6 -6 -6 -5 -5 -5 -5 -4 -4 -4 -4 -4 -3 -3 -3 -2 -1 ---------- Run | Scr Mat Min Mat Min Exi Min Mat Sto Fac Was Fac Low Low Zio Pro Fac Ext Cet Arc Hub Fac Upp Upp Zhi Pro Fac Upp Upp War Pro Res Tes Res Acc Machines Disabled 65 | . . . 1 . . 1 . 4 9 . 5 . . . . . 1 . 2 10 . . 1 . . 12 . . 1 . 2 10 1 5 Max in Single Turn 8 | . . . 1 . . 1 . 1 8 . 3 . . . . . . . 1 8 . . 1 . . 5 . . 1 . 1 1 1 1 Garrison Access 8 | . . . . . . . 1 . . . . . . . . . . . . 1 . . . . . 1 . . . . 1 1 1 2 Network Hub 1 | . . . . . . . . . . . . . . . . . . . . 1 . . . . . . . . . . . . . . Machines Sabotaged . | . . . . . . . . . . . . . . . . . . . . . . . . . . . . . . . . . . . Garrisons Compromised . | . . . . . . . . . . . . . . . . . . . . . . . . . . . . . . . . . . . Overloaded Fab Kills . | . . . . . . . . . . . . . . . . . . . . . . . . . . . . . . . . . . . Fab Network Shutdowns 6 | . . . . . . . . . . . 1 . . . . . . . . . 1 . . . . 1 . . . . 1 1 1 . Hacking | -11 -10 -10 -9 -9 -9 -8 -8 -8 -7 -7 -7 -7 -7 -7 -6 -6 -6 -6 -6 -6 -5 -5 -5 -5 -4 -4 -4 -4 -4 -3 -3 -3 -2 -1 --------- Run | Scr Mat Min Mat Min Exi Min Mat Sto Fac Was Fac Low Low Zio Pro Fac Ext Cet Arc Hub Fac Upp Upp Zhi Pro Fac Upp Upp War Pro Res Tes Res Acc Machines Accessed 119 | . 4 1 7 . 1 . 15 8 7 . 15 . . . . 5 9 . . 6 3 . . 4 . 7 1 2 . . 4 13 3 4 Terminals 75 | . 3 . 6 . . . 11 6 6 . 8 . . . . 4 9 . . 5 2 . . . . 2 . . . . 2 9 . 2 Fabricators 11 | . . . . . . . . . . . 3 . . . . . . . . . 1 . . . . 2 . . . . 1 2 2 . Repair Stations 10 | . . . 1 . . . 2 2 . . 2 . . . . . . . . . . . . . . 2 . . . . . 1 . . Recycling Units 1 | . 1 . . . . . . . . . . . . . . . . . . . . . . . . . . . . . . . . . Scanalyzers 4 | . . . . . . . 1 . 1 . 1 . . . . 1 . . . . . . . . . . . . . . . . . . Garrison Access 9 | . . . . . . . 1 . . . 1 . . . . . . . . 1 . . . . . 1 . . . . 1 1 1 2 Total Hacks 491 | . 16 1 19 . 4 . 67 22 15 . 48 . . . . 11 32 . . 19 28 . . 17 . 61 1 4 . . 27 78 13 8 Successful 343 | . 12 1 12 . 4 . 53 18 6 . 27 . . . . 5 16 . . 13 21 . . 17 . 45 1 4 . . 18 55 11 4 Failed 147 | . 4 . 7 . . . 13 4 9 . 21 . . . . 6 16 . . 6 7 . . . . 16 . . . . 9 23 2 4 Catastrophic 25 | . . . 1 . . . . 2 . . 6 . . . . 3 5 . . 1 1 . . . . . . . . . 1 5 . . Database Lockouts 1 | . . . . . . . 1 . . . . . . . . . . . . . . . . . . . . . . . . . . . Manual 227 | . 13 . 16 . . . 29 13 10 . 18 . . . . . 20 1 . 14 19 . . . . 12 . . . . 10 46 4 2 Terminals 311 | . 15 . 17 . . . 40 16 13 . 25 . . . . 9 32 . . 18 19 . . . . 28 . . . . 19 54 . 6 Fabricators 68 | . . . . . . . . . . . 11 . . . . . . . . . 9 . . . . 15 . . . . 7 15 11 . Repair Stations 60 | . . . 2 . . . 22 6 . . 5 . . . . . . . . . . . . . . 17 . . . . . 8 . . Recycling Units 1 | . 1 . . . . . . . . . . . . . . . . . . . . . . . . . . . . . . . . . Scanalyzers 11 | . . . . . . . 2 . 2 . 5 . . . . 2 . . . . . . . . . . . . . . . . . . Garrison Access 13 | . . . . . . . 3 . . . 2 . . . . . . . . 1 . . . . . 1 . . . . 1 1 2 2 Terminal Hacks 162 | . 8 1 5 . 4 . 19 9 2 . 9 . . . . 3 12 . . 7 11 . . 17 . 15 1 4 . . 10 24 . 1 Record 12 | . . . . . 4 . . . . . . . . . . . . . . . . . . 5 . . . 3 . . . . . . Part Schematic 11 | . . . . . . . . . . . . . . . . 1 . . . . 2 . . 4 . 1 . . . . . 3 . . Robot Analysis 5 | . . . . . . . . . . . . . . . . . . . . . . . . 4 . 1 . . . . . . . . Prototype ID Bank 7 | . . . . . . . 2 . . . . . . . . . . . . . . . . 4 . . . . . . . 1 . . Open Door 10 | . . 1 . . . . . 2 . . . . . . . 1 4 . . . . . . . . . 1 1 . . . . . . Level Access Points 2 | . . . . . . . . . . . . . . . . . . . . 1 . . . . . . . . . . . 1 . . Branch Access Points 7 | . . . . . . . 1 . . . 1 . . . . 1 . . . . 1 . . . . 1 . . . . 1 . . 1 Machine Index 1 | . . . . . . . . . . . . . . . . . . . . . . . . . . 1 . . . . . . . . Terminal Index 11 | . 1 . 1 . . . 1 1 1 . 1 . . . . . 1 . . 1 1 . . . . . . . . . 1 1 . . Fabricator Index 2 | . . . . . . . . . . . 1 . . . . . . . . . . . . . . . . . . . . 1 . . Scanalyzer Index 1 | . . . . . . . . . . . 1 . . . . . . . . . . . . . . . . . . . . . . . Garrison Index 2 | . . . . . . . . . 1 . . . . . . . . . . . . . . . . . . . . . . 1 . . Alert Level 25 | . 2 . 1 . . . 3 2 . . 1 . . . . . 2 . . 1 2 . . . . 4 . . . . 2 5 . . Unreport Threat 25 | . 1 . . . . . 4 3 . . 2 . . . . . 2 . . 1 3 . . . . 5 . . . . 3 1 . . Locate Traps 4 | . . . . . . . . . . . 1 . . . . . . . . . 1 . . . . . . . . . 1 1 . . Recall Extermination 2 | . . . . . . . . . . . . . . . . . . . . . 1 . . . . . . . . . . 1 . . Recall Reinforcements 1 | . . . . . . . . . . . . . . . . . 1 . . . . . . . . . . . . . . . . . Hauler Manifests 7 | . 1 . . . . . 2 1 . . . . . . . . . . . 1 . . . . . . . . . . 1 1 . . Zone Layout 27 | . 3 . 3 . . . 6 . . . 1 . . . . . 2 . . 2 . . . . . 2 . . . . 1 7 . . Fabricator Hacks 39 | . . . . . . . . . . . 7 . . . . . . . . . 5 . . . . 8 . . . . 5 8 6 . Load Schematic 18 | . . . . . . . . . . . 3 . . . . . . . . . 2 . . . . 4 . . . . 2 4 3 . Build 21 | . . . . . . . . . . . 4 . . . . . . . . . 3 . . . . 4 . . . . 3 4 3 . Repair Station Hacks 56 | . . . 1 . . . 22 6 . . 3 . . . . . . . . . . . . . . 16 . . . . . 8 . . Scan Component 29 | . . . 1 . . . 11 3 . . 2 . . . . . . . . . . . . . . 8 . . . . . 4 . . Repair 27 | . . . . . . . 11 3 . . 1 . . . . . . . . . . . . . . 8 . . . . . 4 . . Recycling Unit Hacks . | . . . . . . . . . . . . . . . . . . . . . . . . . . . . . . . . . . . Scanalyzer 10 | . . . . . . . 2 . 2 . 4 . . . . 2 . . . . . . . . . . . . . . . . . . Insert Component 4 | . . . . . . . 1 . 1 . 1 . . . . 1 . . . . . . . . . . . . . . . . . . Analyze 6 | . . . . . . . 1 . 1 . 3 . . . . 1 . . . . . . . . . . . . . . . . . . Garrison Access Hacks 8 | . . . . . . . 1 . . . . . . . . . . . . 1 . . . . . 1 . . . . 1 1 1 2 Seal Access 8 | . . . . . . . 1 . . . . . . . . . . . . 1 . . . . . 1 . . . . 1 1 1 2 Unauthorized Hacks 68 | . 4 . 6 . . . 9 3 2 . 4 . . . . . 4 . . 5 5 . . . . 5 . . . . 2 14 4 1 Terminals 54 | . 3 . 6 . . . 9 3 2 . 4 . . . . . 4 . . 5 2 . . . . 2 . . . . 2 11 . 1 Track 2 | . . . . . . . 1 . . . . . . . . . . . . . . . . . . . . . . . . 1 . . Assimilate 2 | . . . . . . . . . . . . . . . . . . . . . . . . . . . . . . . . 2 . . Botnet 49 | . 3 . 6 . . . 8 3 2 . 4 . . . . . 4 . . 5 2 . . . . 2 . . . . 2 7 . 1 Operators 1 | . . . . . . . . . . . . . . . . . . . . . . . . . . . . . . . . 1 . . Fabricators 13 | . . . . . . . . . . . . . . . . . . . . . 3 . . . . 3 . . . . . 3 4 . Report 3 | . . . . . . . . . . . . . . . . . . . . . 1 . . . . 1 . . . . . 1 . . Prioritize 5 | . . . . . . . . . . . . . . . . . . . . . 1 . . . . 1 . . . . . 1 2 . Siphon 5 | . . . . . . . . . . . . . . . . . . . . . 1 . . . . 1 . . . . . 1 2 . Repair Stations . | . . . . . . . . . . . . . . . . . . . . . . . . . . . . . . . . . . . Recycling Units 1 | . 1 . . . . . . . . . . . . . . . . . . . . . . . . . . . . . . . . . Tunnel 1 | . 1 . . . . . . . . . . . . . . . . . . . . . . . . . . . . . . . . . Scanalyzers . | . . . . . . . . . . . . . . . . . . . . . . . . . . . . . . . . . . . Garrison Access . | . . . . . . . . . . . . . . . . . . . . . . . . . . . . . . . . . . . Data Cores Recovered 3 | . . . . . . . . . . . 1 . . . . . 2 . . . . . . . . . . . . . . . . . Used . | . . . . . . . . . . . . . . . . . . . . . . . . . . . . . . . . . . . Hacking Detections 90 | . 2 . 7 . . . 12 6 6 . 14 . . . . 3 8 . . 5 3 . . . . 5 . . . . 3 12 2 2 Full Trace Events 12 | . . . . . . . . . 2 . 4 . . . . 1 3 . . . . . . . . . . . . . 1 . 1 . Feedback Events 1 | . . . . . . . . . . . . . . . . . 1 . . . . . . . . . . . . . . . . . Corruption 1 | . . . . . . . . . . . . . . . . . 1 . . . . . . . . . . . . . . . . . Feedback Blocked . | . . . . . . . . . . . . . . . . . . . . . . . . . . . . . . . . . . . Robot Schematics Acquired . | . . . . . . . . . . . . . . . . . . . . . . . . . . . . . . . . . . . Robots Built . | . . . . . . . . . . . . . . . . . . . . . . . . . . . . . . . . . . . Matter . | . . . . . . . . . . . . . . . . . . . . . . . . . . . . . . . . . . . Time . | . . . . . . . . . . . . . . . . . . . . . . . . . . . . . . . . . . . Total Robot Build Rating . | . . . . . . . . . . . . . . . . . . . . . . . . . . . . . . . . . . . Part Schematics Acquired 15 | . . . . . . . 1 . 1 . 1 . . . . 2 . . . . 2 . . 4 . 1 . . . . . 3 . . Parts Built 27 | . . . . . . . . . . . 5 . . . . . . . . . 5 . . . . 4 . . . . 3 7 3 . Matter 4834 | . . . . . . . . . . . 654 . . . . . . . . . 668 . . . . 715 . . . . 921 1027 849 . Time 1106 | . . . . . . . . . . . 168 . . . . . . . . . 285 . . . . 152 . . . . 162 161 178 . Total Part Build Rating 171 | . . . . . . . . . . . 22 . . . . . . . . . 34 . . . . 24 . . . . 17 57 17 . Parts Repaired 27 | . . . . . . . 11 3 . . 1 . . . . . . . . . . . . . . 8 . . . . . 4 . . Time 1050 | . . . . . . . 377 114 . . 56 . . . . . . . . . . . . . . 384 . . . . . 119 . . Parts Recycled . | . . . . . . . . . . . . . . . . . . . . . . . . . . . . . . . . . . . Recycled Matter . | . . . . . . . . . . . . . . . . . . . . . . . . . . . . . . . . . . . Retrieved Matter . | . . . . . . . . . . . . . . . . . . . . . . . . . . . . . . . . . . . Retrieved Components . | . . . . . . . . . . . . . . . . . . . . . . . . . . . . . . . . . . . Parts Scanalyzed 4 | . . . . . . . 1 . 1 . 1 . . . . 1 . . . . . . . . . . . . . . . . . . Part Schematics Acquired 4 | . . . . . . . 1 . 1 . 1 . . . . 1 . . . . . . . . . . . . . . . . . . Parts Damaged 1 | . . . . . . . . . . . 1 . . . . . . . . . . . . . . . . . . . . . . . Bothacking | -11 -10 -10 -9 -9 -9 -8 -8 -8 -7 -7 -7 -7 -7 -7 -6 -6 -6 -6 -6 -6 -5 -5 -5 -5 -4 -4 -4 -4 -4 -3 -3 -3 -2 -1 ------------ Run | Scr Mat Min Mat Min Exi Min Mat Sto Fac Was Fac Low Low Zio Pro Fac Ext Cet Arc Hub Fac Upp Upp Zhi Pro Fac Upp Upp War Pro Res Tes Res Acc Used RIF Installer . | . . . . . . . . . . . . . . . . . . . . . . . . . . . . . . . . . . . Robots Hacked . | . . . . . . . . . . . . . . . . . . . . . . . . . . . . . . . . . . . Non-combat . | . . . . . . . . . . . . . . . . . . . . . . . . . . . . . . . . . . . Combat . | . . . . . . . . . . . . . . . . . . . . . . . . . . . . . . . . . . . Robot Hacks Applied . | . . . . . . . . . . . . . . . . . . . . . . . . . . . . . . . . . . . Relay Couplers Released 11 | . . . . . . . . . . . 4 . . . . . . . . 3 . . . . . . . . . . 1 . 3 . Machine Destruction 1 | . . . . . . . . . . . . . . . . . . . . . . . . . . . . . . . 1 . . . Programmers 10 | . . . . . . . . . . . 4 . . . . . . . . 3 . . . . . . . . . . . . 3 . Robots Rewired 18 | . . . . . . . . . 1 . . . . . . 2 13 . . . . . 2 . . . . . . . . . . . Allies Hacked 1 | . . . . . . . . . . . 1 . . . . . . . . . . . . . . . . . . . . . . . Hacks Repelled . | . . . . . . . . . . . . . . . . . . . . . . . . . . . . . . . . . . . Allies | -11 -10 -10 -9 -9 -9 -8 -8 -8 -7 -7 -7 -7 -7 -7 -6 -6 -6 -6 -6 -6 -5 -5 -5 -5 -4 -4 -4 -4 -4 -3 -3 -3 -2 -1 -------- Run | Scr Mat Min Mat Min Exi Min Mat Sto Fac Was Fac Low Low Zio Pro Fac Ext Cet Arc Hub Fac Upp Upp Zhi Pro Fac Upp Upp War Pro Res Tes Res Acc Total Allies 55 | . . . . 1 . . . 10 1 18 . . . . . 2 18 2 . . . . 2 . . . . . . . . 1 . . Largest Group 18 | . . . . 1 . . . 10 3 18 18 . . . . 2 8 2 1 . . . 2 2 2 . . . . . . 1 . . Highest-Rated Group 446 | . . . . 31 . . . 173 73 446 446 . . . . 61 331 190 95 . . . 98 98 98 . . . . . . 44 . . Highest-Rated Ally 156 | . . . . 31 . . . 29 30 35 35 . . . . 32 156 95 95 . . . 49 49 49 . . . . . . 44 . . Total Orders . | . . . . . . . . . . . . . . . . . . . . . . . . . . . . . . . . . . . Ally Attacks 478 | . . . . 12 . . . 107 12 . 123 . . . . 9 149 51 3 . . . . . 12 . . . . . . . . . Total Damage 10334 | . . . . 205 . . . 1505 292 . 2708 . . . . 293 3194 1496 144 . . . . . 497 . . . . . . . . . Kills 88 | . . . . 2 . . . 16 1 . 26 . . . . 4 30 7 1 . . . . . 1 . . . . . . . . . Allies Corrupted . | . . . . . . . . . . . . . . . . . . . . . . . . . . . . . . . . . . . Allies Melted 3 | . . . . . . . . . . . . . . . . . . . . . . . . . . . . . . . . . 3 . Intel | -11 -10 -10 -9 -9 -9 -8 -8 -8 -7 -7 -7 -7 -7 -7 -6 -6 -6 -6 -6 -6 -5 -5 -5 -5 -4 -4 -4 -4 -4 -3 -3 -3 -2 -1 ------- Run | Scr Mat Min Mat Min Exi Min Mat Sto Fac Was Fac Low Low Zio Pro Fac Ext Cet Arc Hub Fac Upp Upp Zhi Pro Fac Upp Upp War Pro Res Tes Res Acc Robot Analysis Total 5 | . . . . . . . . . . . . . . . . . . . . . . . . 4 . 1 . . . . . . . . Derelict Logs Recovered 8 | . . . . 1 . . . . . . . 1 . 1 2 . . . . . . . . . 1 . 2 . . . . . . . Drone Launches . | . . . . . . . . . . . . . . . . . . . . . . . . . . . . . . . . . . . Drone Recoveries . | . . . . . . . . . . . . . . . . . . . . . . . . . . . . . . . . . . . Exploration | -11 -10 -10 -9 -9 -9 -8 -8 -8 -7 -7 -7 -7 -7 -7 -6 -6 -6 -6 -6 -6 -5 -5 -5 -5 -4 -4 -4 -4 -4 -3 -3 -3 -2 -1 ------------- Run | Scr Mat Min Mat Min Exi Min Mat Sto Fac Was Fac Low Low Zio Pro Fac Ext Cet Arc Hub Fac Upp Upp Zhi Pro Fac Upp Upp War Pro Res Tes Res Acc Turns Passed 50375 | 113 983 292 2447 1890 465 1621 4401 1912 2800 1630 4338 895 894 2704 980 1128 1277 657 188 699 834 749 607 248 907 2898 938 504 767 1426 1847 2434 1164 2738 Spaces Moved 17709 | 65 435 159 1067 682 179 558 1327 538 870 407 1228 336 314 1034 355 484 495 201 62 314 322 309 307 138 425 981 534 300 328 492 556 836 378 693 Core 12 | 12 . . . . . . . . . . . . . . . . . . . . . . . . . . . . . . . . . . Treads 17697 | 53 435 159 1067 682 179 558 1327 538 870 407 1228 336 314 1034 355 484 495 201 62 314 322 309 307 138 425 981 534 300 328 492 556 836 378 693 Legs . | . . . . . . . . . . . . . . . . . . . . . . . . . . . . . . . . . . . Wheels . | . . . . . . . . . . . . . . . . . . . . . . . . . . . . . . . . . . . Hover . | . . . . . . . . . . . . . . . . . . . . . . . . . . . . . . . . . . . Flight . | . . . . . . . . . . . . . . . . . . . . . . . . . . . . . . . . . . . Fastest Speed 50 | 50 160 160 160 260 260 260 260 260 252 260 260 260 260 260 260 160 160 160 160 160 170 170 170 170 170 160 160 160 160 275 170 160 270 270 Average Speed 224 | 139 160 160 190 260 260 260 260 260 258 260 260 260 260 260 260 160 187 188 160 160 181 170 170 170 170 186 160 160 223 275 242 190 270 270 Slowest Speed 400 | 160 160 160 260 260 260 260 360 260 360 260 265 260 260 260 260 160 260 260 160 260 400 170 170 170 170 275 160 160 275 275 275 280 270 380 Overloaded Moves . | . . . . . . . . . . . . . . . . . . . . . . . . . . . . . . . . . . . Propulsion Burnouts . | . . . . . . . . . . . . . . . . . . . . . . . . . . . . . . . . . . . Robots Hopped . | . . . . . . . . . . . . . . . . . . . . . . . . . . . . . . . . . . . Cave-ins Triggered . | . . . . . . . . . . . . . . . . . . . . . . . . . . . . . . . . . . . Teleports 1 | . . . . . . . . . . . . . . . . . . . . . . . . . . . . . . . . . . 1 Exploration Rate (%) 55 | 5 76 33 93 96 58 93 97 93 30 96 35 58 57 83 63 16 70 55 74 32 10 43 54 60 61 27 67 49 53 71 17 89 19 18 Regions Visited 34 Branch Regions 22 Pre-discovered Areas 8 | . 1 . . 1 1 . . . . . . . . 1 . . . . . . . . . 3 1 . . . . . . . . . Known Exits Taken 23 | . . . . . . . 1 . . . 1 1 1 1 1 1 1 1 1 1 1 1 1 1 1 1 1 1 1 1 1 1 . . Unknown Exits Taken 9 | 1 1 1 1 1 1 1 . 1 . . . . . . . . . . . . . . . . . . . . . . . . 1 . Scrap Searched 27 | . . 1 . 3 . 1 . . . . . 3 1 3 3 . . . . . . . 1 . 2 . 4 1 . 4 . . . . Spaces Dug 307 | . . . . . . 10 3 . 22 . 1 . . . 11 2 . . 2 158 . 5 . . 7 . 10 . . 16 11 38 1 10 Terrain Destroyed 817 | . . . 12 3 . 15 16 . 41 . 3 . . . 11 2 10 14 8 169 7 20 16 . 17 187 88 3 . 26 31 73 8 37 Melee 20 | . . . . . . . 3 . 2 . 1 . . . 11 2 . . . 1 . . . . . . . . . . . . . . Projectile 382 | . . . 12 3 . 5 4 . . . . . . . . . . 14 8 10 7 20 16 . 17 73 23 3 . 26 31 73 8 29 AOE 415 | . . . . . . 10 9 . 39 . 2 . . . . . 10 . . 158 . . . . . 114 65 . . . . . . 8 Terrain Rammed . | . . . . . . . . . . . . . . . . . . . . . . . . . . . . . . . . . . . Walls Destroyed . | . . . . . . . . . . . . . . . . . . . . . . . . . . . . . . . . . . . Machines Disabled . | . . . . . . . . . . . . . . . . . . . . . . . . . . . . . . . . . . . Actions | -11 -10 -10 -9 -9 -9 -8 -8 -8 -7 -7 -7 -7 -7 -7 -6 -6 -6 -6 -6 -6 -5 -5 -5 -5 -4 -4 -4 -4 -4 -3 -3 -3 -2 -1 --------- Run | Scr Mat Min Mat Min Exi Min Mat Sto Fac Was Fac Low Low Zio Pro Fac Ext Cet Arc Hub Fac Upp Upp Zhi Pro Fac Upp Upp War Pro Res Tes Res Acc Total 25876 | 80 591 189 1330 748 180 636 2023 945 1266 928 2164 349 385 1051 380 739 781 397 131 449 556 504 353 153 568 1860 600 318 360 541 969 1554 473 1325 Wait 5590 | 6 59 18 115 34 . 21 492 290 221 457 757 2 64 10 1 148 166 117 54 72 187 177 8 5 121 698 34 13 10 26 300 502 37 368 Move 17675 | 64 434 158 1066 681 178 557 1326 537 870 406 1227 335 313 1033 354 483 494 200 61 313 321 308 306 137 424 980 533 299 327 491 555 835 377 692 Hop . | . . . . . . . . . . . . . . . . . . . . . . . . . . . . . . . . . . . Pick Up 233 | 2 9 3 21 3 . 5 24 17 14 10 15 1 1 . 1 14 6 6 1 3 10 1 2 3 . 14 . . 3 . 8 27 4 5 Fast Attach 122 | 6 1 . 10 1 . 1 14 6 7 7 8 2 . 3 . 2 . 2 . 1 3 . 4 3 . 10 6 . 5 . 3 12 1 4 Attach 119 | . . 1 3 . . 6 8 1 12 3 8 . 1 . . 10 6 2 . 4 6 1 2 . 2 8 2 . 2 1 4 5 3 18 Detach 26 | . . . 1 . . . . . . 1 . . . . . . . . . . 5 . . . . 2 2 . 1 . . 2 . 12 Swap 309 | . 6 1 8 . 1 4 19 4 19 . 12 2 2 1 1 6 15 14 3 12 5 2 5 . 2 39 2 3 2 7 28 46 10 28 Drop 236 | . 6 3 26 4 1 . 18 20 12 18 18 2 . 4 1 6 4 9 1 4 8 1 2 5 . 13 6 . 8 1 9 18 4 4 Fire 1361 | 2 62 5 69 22 . 39 105 63 95 26 103 5 4 . . 55 35 47 11 37 11 14 18 . 19 92 15 3 2 15 61 102 36 188 Melee 32 | . . . . . . . 3 . 3 . 1 . . . 22 2 . . . 1 . . . . . . . . . . . . . . Ram . | . . . . . . . . . . . . . . . . . . . . . . . . . . . . . . . . . . . Kick . | . . . . . . . . . . . . . . . . . . . . . . . . . . . . . . . . . . . Crush 83 | . 14 . 11 3 . 3 14 5 3 . 10 . . . . 1 . . . 2 . . . . . 4 . . . . 1 5 1 6 Escape Stasis 7 | . . . . . . . . 2 . . 5 . . . . . . . . . . . . . . . . . . . . . . . Rewire 83 | . . . . . . . . . 10 . . . . . . 12 55 . . . . . 6 . . . . . . . . . . . Trap . | . . . . . . . . . . . . . . . . . . . . . . . . . . . . . . . . . . . Miscellaneous . | . . . . . . . . . . . . . . . . . . . . . . . . . . . . . . . . . . . Route ------- -11/Scrapyard -10/Materials (discovered 4 exits: *Mat x3 / *Min) -10/Mines -9/Materials (discovered 5 exits: *Mat x3 / [*Min x2]) -9/Mines (discovered 3 exits: *Mat x2 / *Exi) -9/Exiles -8/Mines (discovered 2 exits: *Mat x2) -8/Materials (discovered 5 exits: *Fac x3 / *Sto x2) -8/Storage -7/Factory -7/Waste -7/Factory (discovered 3 exits: *Fac / *Low x2) -7/Lower Caves -7/Lower Caves -7/Zion (discovered 2 exits: Dee / *Pro) -6/Proximity Caves -6/Factory (discovered 6 exits: *Fac x2 / *Low x2 / *Ext x2) -6/Extension (discovered 2 exits: *Fac / *Cet) -6/Cetus (discovered 2 exits: *Fac / *Arc) -6/Archives (discovered 2 exits: *Hub x2) -6/Hub_04(d) (discovered 4 exits: *Fac x4) -5/Factory (discovered 2 exits: *Upp x2) -5/Upper Caves -5/Upper Caves (discovered 2 exits: *Fac / *Zhi) -5/Zhirov -4/Proximity Caves -4/Factory (discovered 4 exits: *Res / *Upp x2 / Arm) -4/Upper Caves -4/Upper Caves -4/Warlord -3/Proximity Caves -3/Research (discovered 2 exits: *Tes x2) -3/Testing -2/Research -1/Access (discovered 2 exits: *Sur / Com) To Epsilon Eridani History --------- Turn | Location | Event 2 | -11/Scrapyard | Met Revision 17 33 | -11/Scrapyard | Discovered new exit (range 16) 114 | -11/Scrapyard | Entered Materials 308 | -10/Materials | Build established: Mutant 524 | -10/Materials | Discovered new exit (range 10) 652 | -10/Materials | Discovered new exit (range 10) 911 | -10/Materials | Discovered new exit (range 9) 1006 | -10/Materials | Discovered new exit (range 18) 1097 | -10/Materials | Entered Mines 1156 | -10/Mines | Met a Derelict bent on vengeance 1157 | -10/Mines | Met a Derelict who couldn't figure out how to use a Trap Extractor 1350 | -10/Mines | Discovered new exit (range 10) 1357 | -10/Mines | Assembled infested the area 1362 | -10/Mines | Assisted by a Guerilla fighting off Assembled 1389 | -10/Mines | Entered Materials 1389 | -9/Materials | Evolved 2 slots: Utility x1, Weapon x1 1700 | -9/Materials | Build established: Tank 1821 | -9/Materials | Discovered new exit (range 13) 2369 | -9/Materials | Discovered new exit (range 14) 2804 | -9/Materials | Discovered new exit (range 16) 3271 | -9/Materials | Discovered new exit (range 11) 3529 | -9/Materials | Discovered new exit (range 14) 3836 | -9/Materials | Entered Mines 4374 | -9/Mines | Received a Rocket Launcher from a helpful Derelict 4774 | -9/Mines | Deemed a non-threat by the Exiles lab entrance 4798 | -9/Mines | Discovered new exit (range 5) 4801 | -9/Mines | Received a Mining Laser from a helpful Derelict 5386 | -9/Mines | Discovered new exit (range 8) 5448 | -9/Mines | Excavation squad dispatched 5448 | -9/Mines | A large section of the Mines collapsed 5715 | -9/Mines | Discovered new exit (range 5) 5726 | -9/Mines | Entered Exiles 5791 | -9/Exiles | Met 8R-AWN 5833 | -9/Exiles | Met EX-HEX 5932 | -9/Exiles | Met EX-DEC 6076 | -9/Exiles | Learned location of Zion (-7) 6162 | -9/Exiles | Discovered new exit (range 14) 6191 | -9/Exiles | Entered Mines 6246 | -8/Mines | Discovered new exit (range 6) 6469 | -8/Mines | Lost 3 parts (1n1u1w) 7174 | -8/Mines | Discovered new exit (range 5) 7203 | -8/Mines | Core integrity fell below 50% 7812 | -8/Mines | Entered Materials 7812 | -8/Materials | Evolved 2 slots: Propulsion x1, Utility x1 7832 | -8/Materials | Discovered new exit (range 15) 8122 | -8/Materials | Build established: Scavenger-Tank 8132 | -8/Materials | Lost 3 parts (1n2w) 8290 | -8/Materials | Identified exit to Storage 8560 | -8/Materials | Repaired Lgt. Treads 9051 | -8/Materials | Garrison activated, responded to threat 9468 | -8/Materials | Discovered new exit (range 15) 9902 | -8/Materials | Repaired Minigun 9942 | -8/Materials | Repaired Hrd. Medium Armor Plating 9975 | -8/Materials | Repaired Hvy. Assault Rifle 10009 | -8/Materials | Repaired Rnf. Ion Engine 10061 | -8/Materials | Repaired Imp. Assault Rifle 10095 | -8/Materials | Repaired Imp. Treads 10128 | -8/Materials | Repaired Hvy. Assault Rifle 10315 | -8/Materials | Discovered new exit (range 8) 10526 | -8/Materials | Central database locked down 10962 | -8/Materials | Discovered new exit (range 16) 11282 | -8/Materials | Build established: Tank 11461 | -8/Materials | Repaired Minigun 11494 | -8/Materials | Repaired Imp. Treads 11522 | -8/Materials | Repaired Lgt. Treads 11600 | -8/Materials | Build established: Mutant 12027 | -8/Materials | Build established: Tank 12213 | -8/Materials | Entered Storage 12954 | -8/Storage | Assisted by bots powering up and referring to "LRC-V3" 13237 | -8/Storage | Build established: Commander-Tank 13470 | -8/Storage | Repaired Hrd. Medium Armor Plating 13806 | -8/Storage | Discovered new exit (range 16) 14043 | -8/Storage | Repaired Minigun 14083 | -8/Storage | Repaired Minigun 14125 | -8/Storage | Entered Factory 14125 | -7/Factory | Accompanied by 2 allies 14125 | -7/Factory | Evolved 2 slots: Utility x2 14437 | -7/Factory | Build established: Skirmisher 16432 | -7/Factory | Cargo convoy interrupted 16469 | -7/Factory | Destroyed 9 combat bots 16476 | -7/Factory | Lost 4 parts (1n3u) 16476 | -7/Factory | Found Prototype Launcher 16476 | -7/Factory | Identified Scatter Rocket Array 16525 | -7/Factory | First assault squad dispatched 16925 | -7/Factory | Sucked down chute 16925 | -7/Factory | Entered Waste 16988 | -7/Waste | Destroyed C-40 Crusher 16998 | -7/Waste | Destroyed C-40 Crusher 17021 | -7/Waste | Destroyed C-40 Crusher 17037 | -7/Waste | Destroyed C-40 Crusher 17061 | -7/Waste | Destroyed C-40 Crusher 17086 | -7/Waste | Destroyed C-40 Crusher 17169 | -7/Waste | Build established: Scavenger-Skirmisher 17464 | -7/Waste | Discovered new exit (range 13) 17838 | -7/Waste | Build established: Scavenger-Gunner 18025 | -7/Waste | Warlord forces began an assault 18422 | -7/Waste | Build established: Scavenger-Tank 18547 | -7/Waste | Identified exit to Factory 18555 | -7/Waste | Entered Factory 18555 | -7/Factory | Accompanied by 18 allies 18570 | -7/Factory | Garrison activated, responded to threat 18747 | -7/Factory | Fabricated Flak Gun (x2) 18795 | -7/Factory | Fabricated Flak Gun (x2) 18816 | -7/Factory | Build established: Scavenger-Skirmisher 19131 | -7/Factory | Repaired Hvy. Treads 20226 | -7/Factory | Build established: Scavenger-Tank 20423 | -7/Factory | Discovered new exit (range 9) 20592 | -7/Factory | Identified exit to Factory 20951 | -7/Factory | Build established: Scavenger-Skirmisher 20955 | -7/Factory | First assault squad dispatched 21246 | -7/Factory | Identified exit to Lower Caves 22172 | -7/Factory | Fabricated Tri-rail Accelerator (x1) 22327 | -7/Factory | Destroyed 9 combat bots 22430 | -7/Factory | Core integrity fell below 50% 22842 | -7/Factory | Local fabrication network quarantined 22893 | -7/Factory | Entered Lower Caves 23747 | -7/Lower Caves | Discovered new exit (range 15) 23770 | -7/Lower Caves | Learned 4 Factory zone layouts 23786 | -7/Lower Caves | Identified exit to Lower Caves 23788 | -7/Lower Caves | Entered another Lower Caves area 24028 | -7/Lower Caves | Spotted B-75 Beast 24649 | -7/Lower Caves | Discovered new exit (range 11) 24680 | -7/Lower Caves | Identified exit to Zion 24682 | -7/Lower Caves | Entered Zion 24793 | -7/Zion | System corruption cleaned by Quarantine Array 24975 | -7/Zion | Build established: Scavenger-Mutant 25320 | -7/Zion | Discovered new exit (range 16) 25539 | -7/Zion | Learned location of Warlord (-4) 26025 | -7/Zion | Given A8's code to call for help 26557 | -7/Zion | Build established: Scavenger-Skirmisher 26572 | -7/Zion | Identified exit to Deep Caves 27374 | -7/Zion | Identified exit to Proximity Caves 27386 | -7/Zion | Entered Proximity Caves 27537 | -6/Proximity Caves | Learned Factory emergency access door positions 27730 | -6/Proximity Caves | Learned 4 Factory zone layouts 28128 | -6/Proximity Caves | Build established: Scavenger-Mutant 28259 | -6/Proximity Caves | Discovered exit to Factory (range 13) 28366 | -6/Proximity Caves | Entered Factory 28366 | -6/Factory | Evolved 2 slots: Propulsion x1, Utility x1 28367 | -6/Factory | Identified exit to Factory 28536 | -6/Factory | Garrison activated, responded to threat 28647 | -6/Factory | P-60 Hacker assimilated allied Soldier 5a 28660 | -6/Factory | Build established: Scavenger-Skirmisher 28688 | -6/Factory | Spotted B-75 Beast 28704 | -6/Factory | Allies destroyed B-75 Beast 28761 | -6/Factory | Lost 5 parts (2p1u2w) 28777 | -6/Factory | Found Powered Armor 28827 | -6/Factory | Identified exit to Lower Caves 28827 | -6/Factory | Identified exit to Extension 28935 | -6/Factory | Garrison activated, responded to threat 28961 | -6/Factory | Build established: Scavenger-Gunner 28999 | -6/Factory | Discovered exit to Factory (range 8) 29465 | -6/Factory | Garrison activated, responded to threat 29494 | -6/Factory | Entered Extension 29565 | -6/Extension | Rescued A7 29787 | -6/Extension | Build established: Scavenger-Skirmisher 29844 | -6/Extension | First assault squad dispatched 29911 | -6/Extension | Spotted B-75 Beast 29933 | -6/Extension | Rescued a captive Derelict 29955 | -6/Extension | Destroyed B-75 Beast 29969 | -6/Extension | Disrupted transfer network 29972 | -6/Extension | Spotted B-75 Beast 29988 | -6/Extension | Destroyed B-75 Beast 30002 | -6/Extension | Found Prototype Protection 30003 | -6/Extension | Identified Med. Regenerative Plating 30005 | -6/Extension | Extracted ID and sensor layout for unrecognized location from A7's data core 30022 | -6/Extension | Lost 4 parts (1p2n1w) 30077 | -6/Extension | Destroyed 7 combat bots 30128 | -6/Extension | Rescued a captive Derelict 30130 | -6/Extension | Rescued a captive Derelict 30260 | -6/Extension | Build established: Scavenger-Gunner 30602 | -6/Extension | Rescued a captive Derelict 30726 | -6/Extension | Discovered exit to Factory (range 10) 30728 | -6/Extension | Discovered new exit (range 6) 30736 | -6/Extension | Identified exit to Cetus 30771 | -6/Extension | Entered Cetus 30771 | -6/Cetus | Accompanied by 1 ally 30812 | -6/Cetus | Spotted Cetus Guard 30812 | -6/Cetus | Spotted Cetus Guard 30823 | -6/Cetus | Destroyed Cetus Guard 30823 | -6/Cetus | Spotted Cetus Guard 30835 | -6/Cetus | Destroyed Cetus Guard 30836 | -6/Cetus | Spotted Cetus Guard 30849 | -6/Cetus | Destroyed Cetus Guard 30860 | -6/Cetus | Destroyed Cetus Guard 30990 | -6/Cetus | Enhanced Grunt warped into view, answering call for help 30992 | -6/Cetus | Enhanced Grunt warped into view, answering call for help 31023 | -6/Cetus | Discovered new exit (range 16) 31116 | -6/Cetus | Spotted Cetus Guard 31116 | -6/Cetus | Spotted Cetus Guard 31124 | -6/Cetus | Allies destroyed Cetus Guard 31125 | -6/Cetus | Spotted Cetus Guard 31129 | -6/Cetus | Allies destroyed Cetus Guard 31136 | -6/Cetus | Spotted Cetus Guard 31137 | -6/Cetus | Destroyed Cetus Guard 31140 | -6/Cetus | Allies destroyed Cetus Guard 31160 | -6/Cetus | Discovered exit to Factory (range 15) 31173 | -6/Cetus | Met Revision 17 31173 | -6/Cetus | Destroyed Revision 17 31286 | -6/Cetus | Identified exit to Archives 31428 | -6/Cetus | Entered Archives 31428 | -6/Archives | Accompanied by 1 ally 31565 | -6/Archives | Discovered new exit (range 16) 31587 | -6/Archives | Discovered new exit (range 14) 31610 | -6/Archives | Identified exit to Hub_04(d) 31616 | -6/Archives | Entered Hub_04(d) 32188 | -6/Hub_04(d) | Build established: Scavenger-Skirmisher 32258 | -6/Hub_04(d) | Network Hub disabled 32294 | -6/Hub_04(d) | Spotted Lightning 32298 | -6/Hub_04(d) | Spotted Lightning 32299 | -6/Hub_04(d) | System corruption reached 10% 32299 | -6/Hub_04(d) | Spotted Lightning 32315 | -6/Hub_04(d) | Entered Factory 32315 | -5/Factory | Evolved 2 slots: Utility x1, Weapon x1 32338 | -5/Factory | Lost 3 parts (1n2w) 32442 | -5/Factory | Fabricated Tri-rail Accelerator (x1) 32505 | -5/Factory | Fabricated Hvy. Siege Treads (x2) 32513 | -5/Factory | Local fabrication network quarantined 32569 | -5/Factory | Fabricated Hvy. Siege Treads (x2) 32982 | -5/Factory | Identified exit to Upper Caves 33012 | -5/Factory | Spotted B-75 Beast 33013 | -5/Factory | Destroyed B-75 Beast 33149 | -5/Factory | Entered Upper Caves 33675 | -5/Upper Caves | Build established: Hacker-Skirmisher 33859 | -5/Upper Caves | Discovered new exit (range 15) 33883 | -5/Upper Caves | Identified exit to Upper Caves 33898 | -5/Upper Caves | Entered another Upper Caves area 33900 | -5/Upper Caves | Attracted the attention of an 0b10 outpost 33975 | -5/Upper Caves | Destroyed 11 combat bots 34039 | -5/Upper Caves | Discovered new exit (range 11) 34477 | -5/Upper Caves | Discovered new exit (range 16) 34501 | -5/Upper Caves | Identified exit to Zhirov 34505 | -5/Upper Caves | Entered Zhirov 34505 | -5/Zhirov | Accompanied by 2 allies 34505 | -5/Zhirov | Discovered new exit (range 3) 34536 | -5/Zhirov | Met Zhirov 34567 | -5/Zhirov | Learned location of Quarantine (-2) 34567 | -5/Zhirov | Learned location of Testing (-3) 34567 | -5/Zhirov | Learned location of Command (-1) 34582 | -5/Zhirov | Zhirov requested help retrieving the SGEMP Prototype 34608 | -5/Zhirov | Found Alien Artifact 34608 | -5/Zhirov | Identified Integrated Dissipator 34608 | -5/Zhirov | Installed Integrated Dissipator, increased core heat dissipation (+20) 34634 | -5/Zhirov | Found Alien Artifact 34750 | -5/Zhirov | Identified exit to Proximity Caves 34753 | -5/Zhirov | Entered Proximity Caves 34753 | -4/Proximity Caves | Accompanied by 2 allies 35043 | -4/Proximity Caves | Spotted B-86 Titan 35057 | -4/Proximity Caves | Allies destroyed B-86 Titan 35133 | -4/Proximity Caves | Learned location of Armory (-4) 35650 | -4/Proximity Caves | Discovered new exit (range 6) 35658 | -4/Proximity Caves | Identified exit to Factory 35660 | -4/Proximity Caves | Entered Factory 35660 | -4/Factory | Evolved 2 slots: Power x1, Utility x1 35858 | -4/Factory | Repaired Centrium Heavy Treads 35903 | -4/Factory | Repaired Tri-rail Accelerator 35933 | -4/Factory | Repaired Adv. Cooling System 35965 | -4/Factory | Repaired Lrn. Sensor Array 36021 | -4/Factory | Repaired Centrium Medium Armor Plating 36044 | -4/Factory | Repaired Imp. Medium Armor Plating 36872 | -4/Factory | Identified exit to Upper Caves 36872 | -4/Factory | Identified exit to Armory 36939 | -4/Factory | Found Prototype Hackware 37116 | -4/Factory | Identified Exp. Hacking Suite 37159 | -4/Factory | Fabricated Tri-rail Accelerator (x1) 37202 | -4/Factory | Fabricated Tri-rail Accelerator? 37327 | -4/Factory | Fabricated Imp. Weapon Cycler (x2) 37557 | -4/Factory | Local fabrication network quarantined 37700 | -4/Factory | Garrison activated, responded to threat 37801 | -4/Factory | System corruption reached 10% 38039 | -4/Factory | Discovered new exit (range 6) 38160 | -4/Factory | First assault squad dispatched 38173 | -4/Factory | Repaired Tri-rail Accelerator? 38257 | -4/Factory | Repaired Lrn. Sensor Array 38558 | -4/Factory | Entered Upper Caves 39322 | -4/Upper Caves | Learned Research stockpile data 39463 | -4/Upper Caves | Discovered new exit (range 10) 39475 | -4/Upper Caves | Identified exit to Upper Caves 39487 | -4/Upper Caves | Learned Research security intel 39496 | -4/Upper Caves | Entered another Upper Caves area 39880 | -4/Upper Caves | Discovered new exit (range 11) 39909 | -4/Upper Caves | Identified exit to Warlord 39960 | -4/Upper Caves | Learned Factory security intel 40000 | -4/Upper Caves | Entered Warlord 40056 | -4/Warlord | System corruption cleaned by Quarantine Array 40217 | -4/Warlord | Met Warlord 40242 | -4/Warlord | Warlord's base attacked by MAIN.C 40246 | -4/Warlord | Found Prototype Reactor 40259 | -4/Warlord | Found Prototype Hackware 40269 | -4/Warlord | Found Prototype Device 40269 | -4/Warlord | Identified Thermal Barrier 40592 | -4/Warlord | Warlord forces counterattacked 40596 | -4/Warlord | Spotted Striker 40672 | -4/Warlord | Spotted Executioner 40732 | -4/Warlord | Discovered new exit (range 14) 40764 | -4/Warlord | Identified exit to Proximity Caves 40767 | -4/Warlord | Entered Proximity Caves 41319 | -3/Proximity Caves | Spotted B-86 Titan 42171 | -3/Proximity Caves | Discovered new exit (range 10) 42191 | -3/Proximity Caves | Identified exit to Research 42193 | -3/Proximity Caves | Entered Research 42193 | -3/Research | Evolved 2 slots: Utility x2 42193 | -3/Research | Identified Ghost Barrier 42306 | -3/Research | Fabricated Tri-rail Accelerator (x1) 42386 | -3/Research | Fabricated Tri-rail Accelerator? 42502 | -3/Research | Fabricated Exp. Weapon Shielding (x1) 42596 | -3/Research | Local fabrication network quarantined 42751 | -3/Research | Build established: Wizard-Skirmisher 42943 | -3/Research | First assault squad dispatched 43005 | -3/Research | Found Prototype Device 43364 | -3/Research | Identified exit to Testing 44040 | -3/Research | Entered Testing 44080 | -3/Testing | Identified exit to Research 44111 | -3/Testing | Repaired Tri-rail Accelerator 44144 | -3/Testing | Repaired Hvy. Siege Treads 44158 | -3/Testing | Repaired Huge Storage Unit 44273 | -3/Testing | Repaired Lrn. Sensor Array 44790 | -3/Testing | Found Prototype Device 44790 | -3/Testing | Identified Exp. Hardlight Generator 45022 | -3/Testing | Fabricated Adv. Heavy Siege Treads (x2) 45100 | -3/Testing | Fabricated Adv. Heavy Siege Treads (x2) 45127 | -3/Testing | Found Ghost Barrier 45298 | -3/Testing | Fabricated Adv. Weapon Cycler (x2) 45301 | -3/Testing | System corruption reached 10% 45336 | -3/Testing | Local fabrication network quarantined 45368 | -3/Testing | Fabricated Exp. Targeting Computer (x1) 45421 | -3/Testing | Found Prototype Energy Cannon 45540 | -3/Testing | First assault squad dispatched 45880 | -3/Testing | Identified Null Cannon 45896 | -3/Testing | Spotted Striker 45897 | -3/Testing | Spotted Striker 45906 | -3/Testing | Identified Exp. Thermal Shield 45909 | -3/Testing | Found Prototype Protection 46102 | -3/Testing | Scanned by Researcher 46474 | -3/Testing | Entered Research 46474 | -2/Research | Warlord forces began assault on 0b10 46474 | -2/Research | Evolved 2 slots: Utility x2 46475 | -2/Research | Identified SHELL Armor 46540 | -2/Research | Fabricated Tri-rail Accelerator (x1) 46555 | -2/Research | Fabricated Tri-rail Accelerator (x1) 46584 | -2/Research | Research machine network offline 46596 | -2/Research | Fabricated Exp. Weapon Shielding (x1) 46753 | -2/Research | Build established: Hacker-Skirmisher 46865 | -2/Research | Borebot progress halted 46871 | -2/Research | Spotted B-90 Cyclops 46873 | -2/Research | Destroyed B-90 Cyclops 46941 | -2/Research | Spotted Striker 46943 | -2/Research | Spotted Striker 46952 | -2/Research | Destroyed Striker 46957 | -2/Research | Destroyed Striker 47126 | -2/Research | Met up with Warlord 47136 | -2/Research | Borebot progress halted 47201 | -2/Research | Borebot progress halted 47248 | -2/Research | Build established: Machinist-Gunner 47473 | -2/Research | Local fabrication network quarantined 47474 | -2/Research | Warlord invited to help at Command 47552 | -2/Research | Discovered new exit (range 13) 47617 | -2/Research | Spotted Striker 47623 | -2/Research | Destroyed Striker 47638 | -2/Research | Entered Access 47638 | -1/Access | Evolved 2 slots: Power x1, Utility x1 47639 | -1/Access | Identified Vortex Chain Reactor 47888 | -1/Access | First assault squad dispatched 47927 | -1/Access | Build established: Generator-Gunner 48069 | -1/Access | Destroyed 9 combat bots 49048 | -1/Access | Identified Transdimensional Reconstructor 49048 | -1/Access | Warped through subspace 49079 | -1/Access | Lost 3 parts (1p1u1w) 49126 | -1/Access | Garrison activated, responded to threat 49269 | -1/Access | Identified exit to Command 49595 | -1/Access | Destroyed 8 combat bots 50042 | -1/Access | High security lockdown imminent 50122 | -1/Access | High security lockdown engaged 50228 | -1/Access | Discovered new exit (range 5) 50242 | -1/Access | Identified exit to Surface 50309 | -1/Access | Spotted Executioner 50309 | -1/Access | Spotted Striker 50310 | -1/Access | Spotted Executioner 50311 | -1/Access | Destroyed Executioner 50332 | -1/Access | Destroyed Striker 50339 | -1/Access | Destroyed Executioner 50360 | -1/Access | Destroyed 9 combat bots 50362 | -1/Access | Spotted Executioner 50362 | -1/Access | Spotted Striker 50362 | -1/Access | Spotted Striker 50374 | -1/Access | Destroyed Executioner 50376 | *** | Escaped! Last Messages --------------- 50366_ Activated siege mode. 50366_ C-30 ARC bursts open, deploying its payload. 50366_ G-73 Enforcer unfolds itself. 50366_ L-61 Swordsman unfolds itself. 50366_ B-74 Champion unfolds itself. 50366_ M-36 Artificer unfolds itself. 50366_ Imp. Force Field destroyed. 50368_ Acquired 1 matter. 50368_ Acquired 11 matter. 50368_ Acquired 3 matter. 50369_ Lrn. Tractor Beam destroyed. 50369_ B-74 Champion destroyed. 50370_ Penetrated by Slug. 50371_ Adv. Heavy Siege Treads destroyed. 50371_ Executioner knocked back. 50371_ Executioner Prototype Device blasted off. 50373_ Penetrated by Slug. 50374_ Ended siege mode. 50374_ Executioner destroyed. 50375_ Tri-rail Accelerator destroyed. Map ----- +----------------------------------------------------+ | ??????????# + " #??????????????????????? | | ??????????# # """" ???????????????????????? | | ??????????# # """""??????????????????????????? | | ??????????# # """"??????????????????????????? | | ???######## # """???????????????????????????? | | ??? ! # # " ??????????????????????????? | | ???? # #= ??????????????????????????? | | ???? # # ??????????????????????????? | | ??? "" # # ?????????????????????????? | | ??? "" # # ???????????????????????? | | ??"""""" # #############???????????????????????? | | """""" # #???????????????????????????????????? | | "" #==##??????????????????????????????????? | | "" #==##??????????????????????????????????? | | +==##??????????????????????????????????? | | # %#???????????????????????????????????? | | # %#???????????????????????????????????? | | ########### %#???????????????????????????????????? | | ??????????#==#???????????????????????????????????? | | ??????????# =#######"##########??????????????????? | | ??????????# """T"""" [= % "??????????????????? | | ??????????# *""" """" ! % "??????????????????? | | ??????????# !== "=!m "" "??????????????????? | | ??????????# = " K%!%%%"??????????????????? | | ??????????# %% " "=/" =%"??????????????????? | | ??????????# %% " "%@"K*%"??????????????????? | | ??????????# " " l=gm"??????????????????? | | ??????????# " """ "=*""?????????????????? | | ??????????# " %%%%%%""????????????????? | | ??????????# !%% %%""???????????????? | | ??????????# #######"#############???????????????? | | ??????????#* #????????????????# #???????????????? | | #########?# ###################"##########??????? | | # # ## #??????? | | # # ## #??????? | | + + """""" *## #??????? | | "" # # """""" ## #??????? | | "" #%!# """""" ## !!!#??????? | | "" ?#=!# %"""""" % ## !!!#??????? | | "" ?#!%# *%""""""%% ## !!!#??????? | | "" ??#%*#! % [ % %%! ## = #??????? | | "" ??#%%# %%%=% "" [ #??????? | | ???#%%################### ] #??????? | | ???#%%## =??????????????#########+######### | | ######????#%%## ???????????##########% ! | | ??????????#%%##????????????+ % | | ??????????%%%%?????????????#### ##### % | | ??????????% %????????????????# #???# % | | ?????????? % ???????????????## ######+########### | | ??????????= ?????????????### ## #??????? | +----------------------------------------------------+ Best States ------------- Heat Dissipation 172 Energy Generation 75 Energy Capacity 940 Matter Stores 300 Matter Capacity 300 Sight Range 16 Robot Scan Range 18 Terrain Scan Density 10 Jamming Range 16 Armor Coverage 1800 Resistance: EM 15 Weapon Shielding 90 Weapon Cycling 25 Evasion (%) 50 Targeting Accuracy 12 Target Analysis 8 Armor Integrity Analysis 35 Recoil Reduction 4 Kinecelleration 40 Offensive Hacking 56 Defensive Hacking 20 Item Schematics ----------------- Armor Integrity Analyzer | -8/Materials | Scanalyzed Flak Gun | -7/Factory | Scanalyzed Tri-rail Accelerator | -7/Factory | Scanalyzed Hacking Suite | -6/Factory | Scanalyzed Hvy. Siege Treads | -6/Factory | Hacked Imp. Weapon Cycler | -5/Factory | Hacked Exp. Targeting Computer | -5/Factory | Hacked Assault Drone Bay | -5/Zhirov | Free Exp. Heat Sink | -5/Zhirov | Free Exp. Optical Array | -5/Zhirov | Free Imp. Arc Thrower | -5/Zhirov | Free Exp. Weapon Shielding | -4/Factory | Hacked Adv. Heavy Siege Treads | -3/Testing | Hacked EM Dispersion Field | -3/Testing | Hacked Adv. Weapon Cycler | -3/Testing | Hacked Robot Schematics ------------------ None Fabricated ------------ Flak Gun | x2 | -7/Factory Flak Gun | x2 | -7/Factory Tri-rail Accelerator | x1 | -7/Factory Tri-rail Accelerator | x1 | -5/Factory Hvy. Siege Treads | x2 | -5/Factory Hvy. Siege Treads | x2 | -5/Factory Tri-rail Accelerator | x1 | -4/Factory Tri-rail Accelerator | x1 | -4/Factory Imp. Weapon Cycler | x2 | -4/Factory Tri-rail Accelerator | x1 | -3/Research Tri-rail Accelerator | x1 | -3/Research Exp. Weapon Shielding | x1 | -3/Research Adv. Heavy Siege Treads | x2 | -3/Testing Adv. Heavy Siege Treads | x2 | -3/Testing Adv. Weapon Cycler | x2 | -3/Testing Exp. Targeting Computer | x1 | -3/Testing Tri-rail Accelerator | x1 | -2/Research Tri-rail Accelerator | x1 | -2/Research Exp. Weapon Shielding | x1 | -2/Research Alien Tech Used ----------------- Integrated Dissipator Transdimensional Reconstructor Achievements -------------- None Challenges ------------ None Game ------ Seed ParticleTitaniumInsulator Manual? 0 Play Time 04:37:23 Cumulative 1202.0 hours Start 2021.05.23 @ 16:29:42 End 2021.05.24 @ 20:08:40 Sessions 3 Manual Loads 0 Difficulty Rogue Special Mode None Game No. 409 Rogue 409 Adventurer 0 Explorer 0 Win Type 0 Total 88 Types 17/12/37/5/1/2/12/1/1 Lore% 97 Gallery% 96 Achievement% 85 Wizard Run 0 Options --------- ASCII 0 Keyboard 0 Movement Numpad Keybinds 0 Fullscreen 1 Font 18/SmallcapsGlow Map View 76x50 Tactical HUD 1 Map Filters NONE Filters NONE Steam 1 RUN: 739a84b8-3e4b-4f50-954a-ee696be64b88